Workbook

Sheet Source (hidden)
A1: ESV | B1: Semaine | C1: Date | D1: Tournée | E1: Sillon | F1: Dép | G1: Arr | H1: UIC | I1: Parcours / Acheminement | J1: R | K1: N° Ligne | L1: Voie | M1: Pk.Dép | N1: Pk.Arr | O1: Distance | P1: GARAGES
A2: 701 | B2: 52 | C2: 2022-01-01 | I2: FERIE
A3: 701 | B3: 52 | C3: 2022-01-02 | I3: REPOS
A4: 701 | B4: 1 | C4: 2022-01-03 | I4: SEMAINE SECU
A5: 701 | B5: 1 | C5: 2022-01-04 | I5: SEMAINE SECU
A6: 701 | B6: 1 | C6: 2022-01-05 | I6: SEMAINE SECU
A7: 701 | B7: 1 | C7: 2022-01-06 | I7: SEMAINE SECU
A8: 701 | B8: 1 | C8: 2022-01-07 | I8: SEMAINE SECU
A9: 701 | B9: 1 | C9: 2022-01-08 | I9: REPOS
A10: 701 | B10: 1 | C10: 2022-01-09 | I10: REPOS
A11: 701 | B11: 2 | C11: 2022-01-10 | D11: SE07-SE08 | E11: 100001[1] | F11: 1037 | H11: ACH | I11: NEVERS - MACON | P11: V3 Attente Machines
A12: 701 | B12: 2 | C12: 2022-01-10 | D12: SE07-SE08 | H12: 2à6 | I12: MACON - LIMITE INFRAPOLE | K12: 883000 | L12: V1 | M12: 0.734 | N12: 2.6 | O12: =+ABS(M12-N12) -> 1.866
A13: 701 | B13: 2 | C13: 2022-01-10 | D13: SE07-SE08 | H13: 2à6 | I13: LIMITE INFRAPOLE - BOURG EN BRESSE | K13: 883000 | L13: V1 | M13: 2.6 | N13: 36.448 | O13: =+ABS(M13-N13) -> 33.848
A14: 701 | B14: 2 | C14: 2022-01-10 | D14: SE07-SE08 | G14: 1452 | H14: 2à6 | I14: BOURG EN BRESSE - AMBERIEU | K14: 883000 | L14: V1 | M14: 36.448 | N14: 68.128 | O14: 31.68 | P14: V13 MAG
A15: 701 | B15: 2 | C15: 2022-01-11 | D15: SE09 | E15: 100002/03[3] | F15: 1011 | H15: 2à6 | I15: AMBERIEU - LIMITE INFRAPOLE | K15: 890000 | L15: V2 | M15: 51.129 | N15: 42.744 | O15: 8.385 | P15: V13 MAG
A16: 701 | B16: 2 | C16: 2022-01-11 | D16: SE09 | H16: 2à6 | I16: LIMITE INFRAPOLE - LYON ST CLAIR | K16: 890000 | L16: V2 | M16: 42.744 | N16: 8.128 | O16: 34.616
A17: 701 | B17: 2 | C17: 2022-01-11 | D17: SE09 | G17: 1050 | H17: ACH | I17: LYON ST CLAIR - LYON PART DIEU | J17: R | K17: 893000 | L17: V1B | M17: 504.407 | N17: 507.845 | O17: 3.438
A18: 701 | B18: 2 | C18: 2022-01-11 | D18: SE09 | E18: 100004/5[2] | F18: 1121 | H18: ACH | I18: LYON PART DIEU - LYON ST CLAIR | K18: 893000 | L18: V2B | M18: 506.889 | N18: 504.416 | O18: 2.473
A19: 701 | B19: 2 | C19: 2022-01-11 | D19: SE09 | H19: 2à6 | I19: LYON ST CLAIR - LIMITE INFRAPOLE | K19: 890000 | L19: V1 | M19: 8.12 | N19: 42.744 | O19: 34.624
A20: 701 | B20: 2 | C20: 2022-01-11 | D20: SE09 | H20: 2à6 | I20: LIMITE INFRAPOLE - AMBERIEU | K20: 890000 | L20: V1 | M20: 42.744 | N20: 51.133 | O20: 8.389
A21: 701 | B21: 2 | C21: 2022-01-11 | D21: SE09 | H21: 2à6 | I21: AMBERIEU - BOURG EN BRESSE | K21: 883000 | L21: V2 | M21: 68.635 | N21: 37.012 | O21: 31.623
A22: 701 | B22: 2 | C22: 2022-01-11 | D22: SE09 | H22: 2à6 | I22: BOURG EN BRESSE - LIMITE INFRAPOLE | K22: 883000 | L22: V2 | M22: 37.012 | N22: 2.6 | O22: 34.412
A23: 701 | B23: 2 | C23: 2022-01-11 | D23: SE09 | G23: 1316 | H23: 2à6 | I23: LIMITE INFRAPOLE - MACON | J23: R | K23: 883000 | L23: V2 | M23: 2.6 | N23: 0.59 | O23: 2.01
A24: 701 | B24: 2 | C24: 2022-01-11 | D24: SE09 | E24: 100007/06[3] | F24: 1410 | H24: ACH | I24: MACON - LIMITE INFRAPOLE | K24: 830000 | L24: V1 | M24: 440.186 | N24: 455 | O24: 14.814
A25: 701 | B25: 2 | C25: 2022-01-11 | D25: SE09 | H25: ACH | I25: LIMITE INFRAPOLE - VILLEFRANCHE SUR SOANE | K25: 830000 | L25: V1 | M25: 455 | N25: 476.826 | O25: 21.826
A26: 701 | B26: 2 | C26: 2022-01-11 | D26: SE09 | H26: GéoV | I26: VILLEFRANCHE SUR SOANE VOIE A | K26: 830000 | L26: V1 | M26: 476.826 | N26: 477.844 | O26: 1.018
A27: 701 | B27: 2 | C27: 2022-01-11 | D27: SE09 | H27: ACH | I27: VILLEFRANCHE SUR SOANE - ST GERMAIN AU MONT D'OR | K27: 830000 | L27: V1 | M27: 477.844 | N27: 490.66 | O27: 12.816
A28: 701 | B28: 2 | C28: 2022-01-11 | D28: SE09 | H28: ACH | I28: ST GERMAIN AU MONT D'OR - LYON PERRACHE | K28: 830000 | L28: V1 | M28: 490.66 | N28: 510.646 | O28: 19.986
A29: 701 | B29: 2 | C29: 2022-01-11 | D29: SE09 | H29: 2à6 | I29: LYON PERRACHE - OULLINS | K29: 750000 | L29: V1 | M29: 558.9 | N29: 554.9 | O29: 4
A30: 701 | B30: 2 | C30: 2022-01-11 | D30: SE09 | H30: 2à6 | I30: OULLINS - GIVORS CANAL | K30: 750000 | L30: V1 | M30: 554.9 | N30: 539.021 | O30: 15.879
A31: 701 | B31: 2 | C31: 2022-01-11 | D31: SE09 | H31: 2à6 | I31: GIVORS CANAL - RIVE DE GIER | K31: 750000 | L31: V2 | M31: 539.021 | N31: 522.099 | O31: 16.922
A32: 701 | B32: 2 | C32: 2022-01-11 | D32: SE09 | G32: 1605 | H32: ACH | I32: RIVE DE GIER - ST ETIENNE | K32: 750000 | L32: V2 | M32: 522.099 | N32: 503.066 | O32: 19.033 | P32: Voie 62
A33: 701 | B33: 2 | C33: 2022-01-12 | D33: SE10 | E33: 100010/11[2] | F33: 1440 | H33: ACH | I33: ST ETIENNE - RIVE DE GIER | K33: 750000 | L33: V1 | M33: 503.012 | N33: 522.22 | O33: 19.208 | P33: Voie 62
A34: 701 | B34: 2 | C34: 2022-01-12 | D34: SE10 | H34: 2à6 | I34: RIVE DE GIER - GIVORS CANAL | K34: 750000 | L34: V1 | M34: 522.22 | N34: 539.021 | O34: 16.801
A35: 701 | B35: 2 | C35: 2022-01-12 | D35: SE10 | G35: 1515 | H35: ACH | I35: GIVORS CANAL - BADAN | J35: R | K35: 750000 | L35: V2 | M35: 539.021 | N35: 540.25 | O35: 1.229
A36: 701 | B36: 2 | C36: 2022-01-12 | D36: SE10 | E36: 100013 | F36: 1527 | H36: ACH | I36: BADAN - GIVORS CANAL | K36: 750000 | L36: V1 | M36: 540.25 | N36: 539.197 | O36: 1.053
A37: 701 | B37: 2 | C37: 2022-01-12 | D37: SE10 | H37: 2à6 | I37: GIVORS CANAL - PEYRAUD - LIMITE INFRAPOLE | K37: 800000 | L37: V1 | M37: 530.478 | N37: 698.9 | O37: 168.422
A38: 701 | B38: 2 | C38: 2022-01-12 | D38: SE10 | G38: 1908 | H38: 2à6 | I38: LIMITE INFRAPOLE - NIMES | K38: 800000 | L38: V1 | M38: 698.9 | N38: 784.936 | O38: 86.036 | P38: dépôt
A39: 701 | B39: 2 | C39: 2022-01-13 | I39: PLEIN GASOIL (884) | P39: dépôt
A40: 701 | B40: 2 | C40: 2022-01-13 | D40: SE11 | E40: 100016 | F40: 1551 | H40: 2à6 | I40: NIMES - LIMITE INFRAPOLE | K40: 800000 | L40: V2 | M40: 784.978 | N40: 698.9 | O40: 86.078
A41: 701 | B41: 2 | C41: 2022-01-13 | D41: SE11 | H41: 2à6 | I41: LIMITE INFRAPOLE - PEYRAUD - GIVORS CANAL | K41: 800000 | L41: V2 | M41: 698.9 | N41: 530.481 | O41: 168.419
A42: 701 | B42: 2 | C42: 2022-01-13 | D42: SE11 | H42: 2à6 | I42: GIVORS CANAL - OULLINS | K42: 750000 | L42: V2 | M42: 539.195 | N42: 554.9 | O42: 15.705
A43: 701 | B43: 2 | C43: 2022-01-13 | D43: SE11 | H43: 2à6 | I43: OULLINS - LYON PERRACHE | K43: 750000 | L43: V2 | M43: 554.9 | N43: 558.99 | O43: 4.09
A44: 701 | B44: 2 | C44: 2022-01-13 | D44: SE11 | G44: 1956 | H44: ACH | I44: LYON PERRACHE - LYON VAISE | J44: R | K44: 830000 | L44: V2 | M44: 510.556 | N44: 506.491 | O44: 4.065
A45: 701 | B45: 2 | C45: 2022-01-13 | D45: SE11 | E45: 100017 | F45: 2005 | H45: ACH | I45: LYON VAISE - VIENNE | K45: 830000 | L45: V1 | M45: 506.491 | N45: 542.722 | O45: 36.231
A46: 701 | B46: 2 | C46: 2022-01-13 | D46: SE11 | G46: 2153 | H46: 2à6 | I46: VIENNE - VALENCE | K46: 830000 | L46: V1 | M46: 542.722 | N46: 615.667 | O46: 72.945 | P46: VOIE 14BIS
A47: 701 | B47: 2 | C47: 2022-01-14 | D47: SE12 | E47: 100018/19[1] | F47: 1246 | H47: 2à6 | I47: VALENCE - VALENCE | K47: 830000 | L47: V2 | M47: 617.586 | N47: 615.723 | O47: 1.863 | P47: VOIE 14BIS
A48: 701 | B48: 2 | C48: 2022-01-14 | D48: SE12 | H48: 2à6 | I48: VALENCE - ROMANS BOURG DE PEAGE | K48: 908000 | L48: V2 | M48: 1.215 | N48: 20.318 | O48: 19.103
A49: 701 | B49: 2 | C49: 2022-01-14 | D49: SE12 | H49: 2à6 | I49: ROMANS BOURG DE PEAGE - ST PAUL LES ROMANS | K49: 908000 | L49: UNIQUE | M49: 20.318 | N49: 26.225 | O49: 5.907
A50: 701 | B50: 2 | C50: 2022-01-14 | D50: SE12 | H50: 2à6 | I50: V1 DE ST PAUL LES ROMANS | K50: 908000 | L50: V1 | M50: 26.225 | N50: 27.12 | O50: 0.895
A51: 701 | B51: 2 | C51: 2022-01-14 | D51: SE12 | H51: 2à6 | I51: ST PAUL LES ROMANS - LIMITE INFRAPOLE | K51: 908000 | L51: UNIQUE | M51: 27.12 | N51: 28 | O51: 0.88
A52: 701 | B52: 2 | C52: 2022-01-14 | D52: SE12 | H52: 2à6 | I52: LIMITE INFRAPOLE - ST HILAIRE | K52: 908000 | L52: UNIQUE | M52: 28 | N52: 35.274 | O52: 7.274
A53: 701 | B53: 2 | C53: 2022-01-14 | D53: SE12 | H53: 2à6 | I53: ST HILAIRE - ST HILAIRE | K53: 908000 | L53: V1 | M53: 35.274 | N53: 43.183 | O53: 7.909
A54: 701 | B54: 2 | C54: 2022-01-14 | D54: SE12 | H54: 2à6 | I54: ST HILAIRE - ST MARCELLIN | K54: 908000 | L54: UNIQUE | M54: 43.183 | N54: 47.216 | O54: 4.033
A55: 701 | B55: 2 | C55: 2022-01-14 | D55: SE12 | H55: 2à6 | I55: ST MARCELLIN - MOIRANS | K55: 908000 | L55: V1 | M55: 47.216 | N55: 80.053 | O55: 32.837
A56: 701 | B56: 2 | C56: 2022-01-14 | D56: SE12 | G56: 1410 | H56: GéoV | I56: MOIRANS - GRENOBLE BV | J56: R | K56: 905000 | L56: V1 | M56: 112.514 | N56: 129.578 | O56: 17.064
A57: 701 | B57: 2 | C57: 2022-01-14 | D57: SE12 | E57: 100020/21[1] | F57: 1444 | H57: GéoV | I57: GRENOBLE BV - MOIRANS | K57: 905000 | L57: V2 | M57: 129.578 | N57: 112.514 | O57: 17.064
A58: 701 | B58: 2 | C58: 2022-01-14 | D58: SE12 | H58: 2à6 | I58: MOIRANS - ST MARCELLIN | K58: 908000 | L58: V2 | M58: 80.031 | N58: 47.216 | O58: 32.815
A59: 701 | B59: 2 | C59: 2022-01-14 | D59: SE12 | H59: ACH | I59: ST MARCELLIN - ST HILAIRE | K59: 908000 | L59: UNIQUE | M59: 47.216 | N59: 43.183 | O59: 4.033
A60: 701 | B60: 2 | C60: 2022-01-14 | D60: SE12 | H60: 2à6 | I60: ST HILAIRE - ST HILAIRE | K60: 908000 | L60: V2 | M60: 43.183 | N60: 35.274 | O60: 7.909
A61: 701 | B61: 2 | C61: 2022-01-14 | D61: SE12 | H61: ACH | I61: ST HILAIRE - LIMITE INFRAPOLE | K61: 908000 | L61: UNIQUE | M61: 35.274 | N61: 28 | O61: 7.274
A62: 701 | B62: 2 | C62: 2022-01-14 | D62: SE12 | H62: ACH | I62: LIMITE INFRAPOLE - ST PAUL LES ROMANS | K62: 908000 | L62: UNIQUE | M62: 28 | N62: 27.12 | O62: 0.88
A63: 701 | B63: 2 | C63: 2022-01-14 | D63: SE12 | H63: 2à6 | I63: V2 DE ST PAUL LES ROMANS | K63: 908000 | L63: V2 | M63: 27.12 | N63: 26.225 | O63: 0.895
A64: 701 | B64: 2 | C64: 2022-01-14 | D64: SE12 | H64: 2à6 | I64: ROMANS - VALENCE | K64: 908000 | L64: V1 | M64: 20.318 | N64: 1.179 | O64: 19.139
A65: 701 | B65: 2 | C65: 2022-01-14 | D65: SE12 | G65: 1615 | H65: 2à6 | I65: VALENCE - VALENCE (rebroussement derrière Cv13) | K65: 830000 | L65: V1 | M65: 615.759 | N65: 618.478 | O65: 2.719 | P65: VOIE 14BIS
A66: 701 | B66: 2 | C66: 2022-01-15 | D66: SE13 | E66: 100025 | F66: 917 | H66: 2à6 | I66: VALENCE - PORTES | K66: 830000 | L66: V1 | M66: 618.478 | N66: 625.8 | O66: 7.322 | P66: VOIE 14BIS
A67: 701 | B67: 2 | C67: 2022-01-15 | D67: SE13 | H67: 2à6 | I67: PORTES - LIVRON | K67: 830000 | L67: V1 | M67: 625.8 | N67: 634.015 | O67: 8.215
A68: 701 | B68: 2 | C68: 2022-01-15 | D68: SE13 | H68: 2à6 | I68: LIVRON - LIMITE INFRAPOLE | K68: 830000 | L68: V1 | M68: 634.015 | N68: 688.794 | O68: 54.779
A69: 701 | B69: 2 | C69: 2022-01-15 | D69: SE13 | G69: 1058 | H69: 2à6 | I69: LIMITE INFRAPOLE - AVIGNON | J69: R | K69: 830000 | L69: V1 | M69: 688.794 | N69: 740.897 | O69: 52.103
A70: 701 | B70: 2 | C70: 2022-01-15 | D70: SE13 | E70: 100026 | F70: 1108 | H70: 2à6 | I70: AVIGNON - LIMITE INFRAPOLE | K70: 830000 | L70: V2 | M70: 740.984 | N70: 688.794 | O70: 52.19
A71: 701 | B71: 2 | C71: 2022-01-15 | D71: SE13 | H71: 2à6 | I71: LIMITE INFRAPOLE - LIVRON | K71: 830000 | L71: V2 | M71: 688.794 | N71: 634.333 | O71: 54.461
A72: 701 | B72: 2 | C72: 2022-01-15 | D72: SE13 | H72: 2à6 | I72: LIVRON - PORTES | K72: 830000 | L72: V2 | M72: 634.333 | N72: 625.819 | O72: 8.514
A73: 701 | B73: 2 | C73: 2022-01-15 | D73: SE13 | H73: 2à6 | I73: PORTES - VALENCE | K73: 830000 | L73: V2BIS | M73: 625.819 | N73: 621.183 | O73: 4.636
A74: 701 | B74: 2 | C74: 2022-01-15 | D74: SE13 | G74: 1349 | H74: 2à6 | I74: VALENCE - VIENNE | K74: 830000 | L74: V2 | M74: 621.183 | N74: 543.025 | O74: 78.158 | P74: Voies Butoir (6,8,10)
A75: 701 | B75: 2 | C75: 2022-01-16 | D75: SE14 | E75: 100027 | F75: 858 | H75: ACH | I75: VIENNE - VALENCE | K75: 830000 | L75: V1 | M75: 542.722 | N75: 621.183 | O75: 78.461 | P75: Voies Butoir (6,8,10)
A76: 701 | B76: 2 | C76: 2022-01-16 | D76: SE14 | H76: 2à6 | I76: VALENCE - PORTES | K76: 830000 | L76: V1BIS | M76: 621.183 | N76: 625.819 | O76: 4.636
A77: 701 | B77: 2 | C77: 2022-01-16 | D77: SE14 | G77: 1015 | H77: ACH | I77: PORTES - LIVRON | J77: R | K77: 830000 | L77: V1 | M77: 625.819 | N77: 633.743 | O77: =+ABS(M77-N77) -> 7.924
A78: 701 | B78: 2 | C78: 2022-01-16 | D78: SE14 | E78: 100028 | F78: 1028 | H78: ACH | I78: LIVRON - PORTES | K78: 830000 | L78: V2 | M78: 633.928 | N78: 625.819 | O78: 8.109
A79: 701 | B79: 2 | C79: 2022-01-16 | D79: SE14 | G79: 1044 | H79: 2à6 | I79: PORTES - VALENCE | J79: R | K79: 830000 | L79: V2 | M79: 625.819 | N79: 617.444 | O79: 8.375
A80: 701 | B80: 2 | C80: 2022-01-16 | D80: SE14 | E80: 100029 | F80: 1114 | H80: ACH | I80: VALENCE - AVIGNON | K80: 830000 | L80: V1 | M80: 617.468 | N80: 740.897 | O80: 123.429
A81: 701 | B81: 2 | C81: 2022-01-16 | D81: SE14 | G81: 1324 | H81: 2à6 | I81: AVIGNON - ARLES | J81: R | K81: 830000 | L81: V1 | M81: 740.897 | N81: 775.947 | O81: 35.05
A82: 701 | B82: 2 | C82: 2022-01-16 | D82: SE14 | E82: 100030/31[1] | F82: 1335 | H82: 2à6 | I82: ARLES - AVIGNON | K82: 830000 | L82: V2 | M82: 775.883 | N82: 741.085 | O82: 34.798
A83: 701 | B83: 2 | C83: 2022-01-16 | D83: SE14 | H83: ACH | I83: AVIGNON - AVIGNON | K83: 830000 | M83: 741.085 | N83: 740.8 | O83: 0.285
A84: 701 | B84: 2 | C84: 2022-01-16 | D84: SE14 | H84: 2à6 | I84: AVIGNON - CAVAILLON - MIRAMAS | K84: 925000 | L84: V1 | M84: 0.547 | N84: 67.088 | O84: 66.541
A85: 701 | B85: 2 | C85: 2022-01-16 | D85: SE14 | H85: ACH | I85: MIRAMAS - MIRAMAS | K85: 925000 | L85: 1RACC | M85: 67.088 | N85: 67.7 | O85: 0.612
A86: 701 | B86: 2 | C86: 2022-01-16 | D86: SE14 | G86: 1509 | H86: ACH | I86: MIRAMAS - MIRAMAS FAISCEAU RECEPTION | K86: 830000 | L86: 2TER | M86: 808.08 | N86: 808.707 | O86: 0.627
A87: 701 | B87: 2 | C87: 2022-01-16 | I87: PLEIN GASOIL (1267) | P87: MIRAMAS DEPOT
A88: 701 | B88: 3 | C88: 2022-01-17 | D88: SE15B | E88: 100033[1] | F88: 829 | H88: ACH | I88: MIRAMAS FAISCEAU DEPART - MIRAMAS | K88: 830000 | M88: 808.7 | N88: 808.947 | O88: 0.247 | P88: MIRAMAS DEPOT
A89: 701 | B89: 3 | C89: 2022-01-17 | D89: SE15B | H89: 2à6 | I89: MIRAMAS - MARTIGUES | K89: 935000 | L89: V1 | M89: 809.28 | N89: 840 | O89: 30.72
A90: 701 | B90: 3 | C90: 2022-01-17 | D90: SE15B | H90: 7à9 | I90: MARTIGUES - L'ESTAQUE | K90: 935000 | L90: V1 | M90: 840 | N90: 870.081 | O90: 30.081
A91: 701 | B91: 3 | C91: 2022-01-17 | D91: SE15B | G91: 947 | H91: 2à6 | I91: L'ESTAQUE - Marseille Euroméditerranée - MARSEILLE ST CHARLES | J91: R | K91: 939001 | L91: VMM1 | M91: 851.699 | N91: 861.536 | O91: 9.837
A92: 701 | B92: 3 | C92: 2022-01-17 | D92: SE15B | E92: 100400/01[2] | F92: 1107 | H92: ACH | I92: MARSEILLE ST CHARLES BV - MARSEILLE ST CHARLES | K92: 830000 | M92: 862.05 | N92: 859.884 | O92: 2.166
A93: 701 | B93: 3 | C93: 2022-01-17 | D93: SE15B | H93: 2à6 | I93: MARSEILLE ST CHARLES - ST ANTOINE | K93: 905000 | L93: VA2 | M93: 441.843 | N93: 435.67 | O93: 6.173
A94: 701 | B94: 3 | C94: 2022-01-17 | D94: SE15B | H94: 2à6 | I94: ST ANTOINE - SEPTEME | K94: 905000 | L94: VA1 | M94: 435.67 | N94: 430.379 | O94: 5.291
A95: 701 | B95: 3 | C95: 2022-01-17 | D95: SE15B | H95: 2à6 | I95: SEPTEME - BOUC CABRIES | K95: 905000 | L95: VA2 | M95: 430.379 | N95: 426.621 | O95: 3.758
A96: 701 | B96: 3 | C96: 2022-01-17 | D96: SE15B | H96: 2à6 | I96: BOUC CABRIES - GARDANNE | K96: 905000 | L96: VA1 | M96: 426.621 | N96: 418.8 | O96: 7.821
A97: 701 | B97: 3 | C97: 2022-01-17 | D97: SE15B | H97: 2à6 | I97: GARDANNE - AIX EN PROVENCE | K97: 905000 | L97: VA1 | M97: 418.8 | N97: 408.517 | O97: 10.283
A98: 701 | B98: 3 | C98: 2022-01-17 | D98: SE15B | H98: 7à9 | I98: AIX EN PROVENCE - Racc | K98: 905000 | L98: UNIQUE | M98: 408.517 | N98: 379.726 | O98: 28.791
A99: 701 | B99: 3 | C99: 2022-01-17 | D99: SE15B | H99: 7à9 | I99: RACCORDEMENT DE PERTUIS | K99: 905306 | L99: UNIQUE | M99: 0.637 | N99: 0 | O99: 0.637
A100: 701 | B100: 3 | C100: 2022-01-17 | D100: SE15B | H100: 7à9 | I100: Racc - MANOSQUE (voie évit) | K100: 905000 | L100: UNIQUE | M100: 371.178 | N100: 340.083 | O100: 31.095
A101: 701 | B101: 3 | C101: 2022-01-17 | D101: SE15B | H101: 7à9 | I101: MANOSQUE - SERRES(EVIT) - VEYNES | K101: 905000 | L101: UNIQUE | M101: 339.359 | N101: 244.131 | O101: 95.228
A102: 701 | B102: 3 | C102: 2022-01-17 | D102: SE15B | G102: 1535 | H102: 2à6 | I102: VEYNES DEVOLUY - GAP | K102: 915000 | L102: UNIQUE | M102: 240.048 | N102: 266.958 | O102: 26.91 | P102: VOIE 4 OU 11
A103: 701 | B103: 3 | C103: 2022-01-18 | D103: SE16B | E103: 100402/03[4] | F103: 652 | H103: ACH | I103: GAP - AIX EN PROVENCE | O103: 0 | P103: VOIE 4 OU 11
A104: 701 | B104: 3 | C104: 2022-01-18 | D104: SE16B | H104: 2à6 | I104: AIX EN PROVENCE - GARDANNE | K104: 905000 | L104: VA1 | M104: 408.517 | N104: 419.631 | O104: 11.114
A105: 701 | B105: 3 | C105: 2022-01-18 | D105: SE16B | H105: 2à6 | I105: GARDANNE - SEPTEME | K105: 905000 | L105: VA1 | M105: 419.631 | N105: 430.228 | O105: 10.597
A106: 701 | B106: 3 | C106: 2022-01-18 | D106: SE16B | H106: 2à6 | I106: SEPTEME - MARSEILLE ST CHARLES | K106: 905000 | L106: VA1 | M106: 430.228 | N106: 442.206 | O106: 11.978
A107: 701 | B107: 3 | C107: 2022-01-18 | D107: SE16B | H107: 2à6 | I107: MARSEILLE ST CHARLES - Raccordement des Chartreux | K107: 830000 | L107: V1 | M107: 860.247 | N107: 860.256 | O107: 0.009
A108: 701 | B108: 3 | C108: 2022-01-18 | D108: SE16B | H108: 2à6 | I108: RACC DES CHARTREUX | K108: 936300 | L108: V1 | M108: 860.256 | N108: 861.566 | O108: 1.31
A109: 701 | B109: 3 | C109: 2022-01-18 | D109: SE16B | G109: 1115 | H109: ACH | I109: Raccordement des Chartreux - MARSEILLE BLANCARDE | J109: R | K109: 930000 | L109: MV1 | M109: 2.062 | N109: 3.952 | O109: 1.89
A110: 701 | B110: 3 | C110: 2022-01-18 | D110: SE16B | E110: 100036 | F110: 1125 | H110: ACH | I110: MARSEILLE BLANCARDE - Raccordement des Chartreux | K110: 930000 | L110: MV2 | M110: 3.848 | N110: 1.937 | O110: 1.911
A111: 701 | B111: 3 | C111: 2022-01-18 | D111: SE16B | H111: 2à6 | I111: RACC DES CHARTREUX | K111: 936300 | L111: V2 | M111: 861.441 | N111: 860.364 | O111: 1.077
A112: 701 | B112: 3 | C112: 2022-01-18 | D112: SE16B | H112: 2à6 | I112: Racc des Chartreux - L'ESTAQUE - ROGNAC - MIRAMAS | K112: 830000 | L112: V2 | M112: 860.207 | N112: 808.579 | O112: 51.628
A113: 701 | B113: 3 | C113: 2022-01-18 | D113: SE16B | G113: 1225 | H113: ACH | I113: MIRAMAS - MIRAMAS FAISCEAU RECEPTION | K113: 830000 | L113: V2B | M113: 808.579 | N113: 806.755 | O113: 1.824 | P113: MIRAMAS DEPOT
A114: 701 | B114: 3 | C114: 2022-01-19 | D114: SE17-18B | E114: 100038[1] | F114: 831 | H114: ACH | I114: MIRAMAS FAISCEAU DEPART - MIRAMAS | K114: 830000 | M114: 808.7 | N114: 808.947 | O114: 0.247 | P114: MIRAMAS DEPOT
A115: 701 | B115: 3 | C115: 2022-01-19 | D115: SE17-18B | H115: ACH | I115: MIRAMAS - BIF DE LAVALDUC | K115: 935000 | L115: V1 | M115: 809.28 | N115: 824.843 | O115: 15.563
A116: 701 | B116: 3 | C116: 2022-01-19 | D116: SE17-18B | H116: 2à6 | I116: BIF DE LAVALDUC - FOS FIGUERAT | K116: 935901 | L116: V1 | M116: 0.081 | N116: 4.568 | O116: 4.487
A117: 701 | B117: 3 | C117: 2022-01-19 | D117: SE17-18B | H117: 2à6 | I117: FOS FIGUERAT - PORT ST LOUIS | K117: 935902 | L117: V1 | M117: 4.568 | N117: 11.524 | O117: 6.956
A118: 701 | B118: 3 | C118: 2022-01-19 | D118: SE17-18B | H118: 2à6 | I118: V1 DU PORT ST LOUIS | K118: 935903 | L118: V1 | M118: 11.524 | N118: 12.775 | O118: 1.251
A119: 701 | B119: 3 | C119: 2022-01-19 | D119: SE17-18B | H119: 2à6 | I119: VOIE UNIQUE DU PORT ST LOUIS | K119: 935903 | L119: UNIQUE | M119: 12.775 | N119: 19.641 | O119: 6.866
A120: 701 | B120: 3 | C120: 2022-01-19 | D120: SE17-18B | G120: 915 | H120: 2à6 | I120: VOIE UNIQUE DU PORT ST LOUIS - FOS-GRAVELEAU | J120: R | K120: 935904 | L120: UNIQUE | M120: 19.641 | N120: 25.045 | O120: 5.404
A121: 701 | B121: 3 | C121: 2022-01-19 | D121: SE17-18B | E121: 100039[1] | F121: 929 | H121: ACH | I121: FOS-GRAVELEAU - VOIE UNIQUE DU PORT ST LOUIS | K121: 935904 | L121: UNIQUE | M121: 25.045 | N121: 19.641 | O121: 5.404
A122: 701 | B122: 3 | C122: 2022-01-19 | D122: SE17-18B | H122: ACH | I122: VOIE UNIQUE DU PORT ST LOUIS | K122: 935903 | L122: UNIQUE | M122: 22.039 | N122: 12.775 | O122: 9.264
A123: 701 | B123: 3 | C123: 2022-01-19 | D123: SE17-18B | H123: 2à6 | I123: V2 DU PORT ST LOUIS | K123: 935903 | L123: V2 | M123: 12.775 | N123: 11.53 | O123: 1.245
A124: 701 | B124: 3 | C124: 2022-01-19 | D124: SE17-18B | H124: 2à6 | I124: PORT ST LOUIS - FIGUERAT | K124: 935902 | L124: V2 | M124: 11.53 | N124: 4.568 | O124: 6.962
A125: 701 | B125: 3 | C125: 2022-01-19 | D125: SE17-18B | H125: 2à6 | I125: FIGUERAT - BIF DE LAVALDUC | K125: 935901 | L125: V2 | M125: 4.568 | N125: 0 | O125: 4.568
A126: 701 | B126: 3 | C126: 2022-01-19 | D126: SE17-18B | G126: 1017 | H126: ACH | I126: BIF DE LAVALDUC - ISTRES - MIRAMAS | J126: R | K126: 935000 | L126: V2 | M126: 824.843 | N126: 809.371 | O126: 15.472
A127: 701 | B127: 3 | C127: 2022-01-19 | D127: SE17-18B | E127: 100041[1] | F127: 1027 | G127: 1112 | H127: 2à6 | I127: MIRAMAS - ROGNAC - L'ESTAQUE - MARSEILLE ST CHARLES | J127: R | K127: 830000 | L127: V1 | M127: 809.42 | N127: 861.168 | O127: 51.748
A128: 701 | B128: 3 | C128: 2022-01-19 | D128: SE17-18B | E128: 100043 | F128: 1126 | H128: 2à6 | I128: MARSEILLE ST CHARLES - MARSEILLE BLANCARDE | K128: 930000 | L128: MV1 | M128: 0.983 | N128: 3.952 | O128: 2.969
A129: 701 | B129: 3 | C129: 2022-01-19 | D129: SE17-18B | G129: 1142 | H129: 2à6 | I129: MARSEILLE BLANCARDE - AUBAGNE (derrière Cv 3676 ?) | J129: R | K129: 930000 | L129: V1 | M129: 3.952 | N129: 17.435 | O129: 13.483
A130: 701 | B130: 3 | C130: 2022-01-19 | D130: SE17-18B | E130: 100042[1] | F130: 1151 | G130: 1205 | H130: 2à6 | I130: AUBAGNE - MARSEILLE BLANCARDE | J130: R | K130: 930000 | L130: V2 | M130: 17.17 | N130: 3.634 | O130: 13.536
A131: 701 | B131: 3 | C131: 2022-01-19 | D131: SE17-18B | E131: 100045[2] | F131: 1215 | H131: 2à6 | I131: MARSEILLE BLANCARDE - AUBAGNE | K131: 930000 | L131: VMV3 | M131: 3.393 | N131: 16.221 | O131: 12.828
A132: 701 | B132: 3 | C132: 2022-01-19 | D132: SE17-18B | H132: 2à6 | I132: AUBAGNE VOIE A | K132: 930000 | L132: A | M132: 16.221 | N132: 17.138 | O132: 0.917
A133: 701 | B133: 3 | C133: 2022-01-19 | D133: SE17-18B | G133: 1529 | H133: 2à6 | I133: AUBAGNE - CANNES MARCHANDISES | K133: 930000 | L133: V1 | M133: 17.138 | N133: 188.892 | O133: 171.754 | P133: VOIES 61/73/75/93
A134: 701 | B134: 3 | C134: 2022-01-20 | D134: SE17-SE19 | E134: 100053[2] | F134: 838 | H134: 2à6 | I134: CANNES MARCHANDISES - CANNES | K134: 930000 | L134: V1 | M134: 188.892 | N134: 193.132 | O134: 4.24 | P134: VOIES 61/73/75/93
A135: 701 | B135: 3 | C135: 2022-01-20 | D135: SE17-SE19 | H135: 2à6 | I135: CANNES - ANTIBES | K135: 930000 | L135: V1 | M135: 193.132 | N135: 203.87 | O135: 10.738
A136: 701 | B136: 3 | C136: 2022-01-20 | D136: SE17-SE19 | H136: 2à6 | I136: ANTIBES - CAGNES SUR MER | K136: 930000 | L136: ANC | M136: 203.874 | N136: 212.95 | O136: 9.076
A137: 701 | B137: 3 | C137: 2022-01-20 | D137: SE17-SE19 | H137: 2à6 | I137: CAGNES SUR MER - NICE | K137: 930000 | L137: V1 | M137: 212.95 | N137: 224.45 | O137: 11.5
A138: 701 | B138: 3 | C138: 2022-01-20 | D138: SE17-SE19 | H138: 2à6 | I138: NICE - MENTON | K138: 930000 | L138: V1 | M138: 224.45 | N138: 248.586 | O138: 24.136
A139: 701 | B139: 3 | C139: 2022-01-20 | D139: SE17-SE19 | G139: 1010 | H139: 2à6 | I139: MENTON - VINTIMILLE | J139: R | K139: 930000 | L139: V1 | M139: 248.586 | N139: 258.512 | O139: 9.926
A140: 701 | B140: 3 | C140: 2022-01-20 | D140: SE17-SE19 | E140: 100054[5] | F140: 1020 | H140: 2à6 | I140: VINTIMILLE - MENTON | K140: 930000 | L140: V2 | M140: 258.512 | N140: 248.586 | O140: 9.926
A141: 701 | B141: 3 | C141: 2022-01-20 | D141: SE17-SE19 | H141: 2à6 | I141: MENTON - CAGNES SUR MER | K141: 930000 | L141: V2 | M141: 248.586 | N141: 212.95 | O141: =+ABS(M141-N141) -> 35.636
A142: 701 | B142: 3 | C142: 2022-01-20 | D142: SE17-SE19 | H142: 2à6 | I142: CAGNES SUR MER - ANTIBES | K142: 930000 | L142: V2 | M142: 212.95 | N142: 203.87 | O142: 9.08
A143: 701 | B143: 3 | C143: 2022-01-20 | D143: SE17-SE19 | H143: 2à6 | I143: ANTIBES - CANNES | K143: 930000 | L143: V2 | M143: 203.87 | N143: 193.132 | O143: 10.738
A144: 701 | B144: 3 | C144: 2022-01-20 | D144: SE17-SE19 | H144: 2à6 | I144: CANNES - CANNES MARCHANDISES | J144: R | K144: 930000 | L144: V2 | M144: 193.132 | N144: 190.799 | O144: 2.333
A145: 701 | B145: 3 | C145: 2022-01-20 | D145: SE17-SE19 | H145: ACH | I145: CANNES MARCHANDISES - CANNES LA BOCCA | K145: 930000 | M145: 190.799 | N145: 190.61 | O145: 0.189
A146: 701 | B146: 3 | C146: 2022-01-20 | D146: SE17-SE19 | G146: 1150 | H146: 2à6 | I146: CANNES LA BOCCA - GRASSE | J146: R | K146: 944000 | L146: UNIQUE | M146: 2.522 | N146: 18.876 | O146: 16.354
A147: 701 | B147: 3 | C147: 2022-01-20 | D147: SE17-SE19 | E147: 101849[1] | F147: 1320 | H147: 2à6 | I147: GRASSE - MOUANS (EVIT) - LE BOSQUET (EVIT) - CANNES LA BOCCA | K147: 944000 | L147: UNIQUE | M147: 18.876 | N147: 2.522 | O147: 16.354
A148: 701 | B148: 3 | C148: 2022-01-20 | D148: SE17-SE19 | H148: ACH | I148: CANNES - ANTIBES | K148: 930000 | L148: V1 | M148: 190.61 | N148: 203.87 | O148: 13.26
A149: 701 | B149: 3 | C149: 2022-01-20 | D149: SE17-SE19 | G149: 1352 | H149: 2à6 | I149: ANTIBES - CAGNES SUR MER (derrière Cv70) | J149: R | K149: 930000 | L149: V1 | M149: 203.874 | N149: 212.959 | O149: 9.085
A150: 701 | B150: 3 | C150: 2022-01-20 | D150: SE17-SE19 | E150: 100050[1] | F150: 1405 | H150: ACH | I150: CAGNES SUR MER - ANTIBES | K150: 930000 | L150: ANC/V2 | M150: 212.835 | N150: 203.87 | O150: 8.965
A151: 701 | B151: 3 | C151: 2022-01-20 | D151: SE17-SE19 | G151: 1435 | H151: ACH | I151: ANTIBES - CANNES MARCHANDISES | K151: 930000 | L151: V2 | M151: 203.87 | N151: 188.892 | O151: 14.978 | P151: VOIES 61/73/75/93
A152: 701 | B152: 3 | C152: 2022-01-21 | D152: SE19-SE20 | E152: 100068 | F152: 740 | G152: 922 | H152: 2à6 | I152: CANNES MARCHANDISES - TOULON | J152: R | K152: 930000 | L152: V2 | M152: 188.892 | N152: 68.27 | O152: 120.622 | P152: VOIES 61/73/75/93
A153: 701 | B153: 3 | C153: 2022-01-21 | D153: SE19-SE20 | E153: 100065[1] | F153: 1035 | H153: ACH | I153: TOULON - LA PAULINE HYERES | K153: 930000 | L153: V1 | M153: 67.433 | N153: 77.381 | O153: 9.948
A154: 701 | B154: 3 | C154: 2022-01-21 | D154: SE19-SE20 | G154: 1057 | H154: 7à9 | I154: LA PAULINE HYERES - LES SALINS D'HYERES | J154: R | K154: 942000 | L154: UNIQUE | M154: 0.362 | N154: 14.36 | O154: 13.998
A155: 701 | B155: 3 | C155: 2022-01-21 | D155: SE19-SE20 | E155: 100064[1] | F155: 1128 | H155: ACH | I155: LES SALINS D'HYERES - LA PAULINE HYERES | K155: 942000 | L155: UNIQUE | M155: 14.36 | N155: 0.362 | O155: 13.998
A156: 701 | B156: 3 | C156: 2022-01-21 | D156: SE19-SE20 | H156: ACH | I156: LA PAULINE HYERES - TOULON | K156: 930000 | L156: V2 | M156: 77.487 | N156: 67.312 | O156: 10.175
A157: 701 | B157: 3 | C157: 2022-01-21 | D157: SE19-SE20 | H157: 2à6 | I157: TOULON - AUBAGNE | K157: 930000 | L157: V2 | M157: 67.312 | N157: 16.221 | O157: 51.091
A158: 701 | B158: 3 | C158: 2022-01-21 | D158: SE19-SE20 | H158: ACH | I158: AUBAGNE - MARSEILLE BLANCARDE | K158: 930000 | L158: MV2 | M158: 16.221 | N158: 3.634 | O158: 12.587
A159: 701 | B159: 3 | C159: 2022-01-21 | D159: SE19-SE20 | G159: 1252 | H159: 2à6 | I159: MARSEILLE BLANCARDE - MARSEILLE ST CHARLES | K159: 930000 | L159: MV2 | M159: 3.634 | N159: 0.913 | O159: 2.721 | P159: VOIE 29 abeilles
A160: 701 | B160: 3 | C160: 2022-01-22 | D160: SE20B | E160: 100066[1] | F160: 920 | H160: ACH | I160: MARSEILLE ST CHARLES - MARSEILLE ST CHARLES | K160: 939001 | L160: VMM3 | M160: 861.666 | N160: 858.492 | O160: 3.174 | P160: VOIE 29 abeilles
A161: 701 | B161: 3 | C161: 2022-01-22 | D161: SE20B | H161: 2à6 | I161: MARSEILLE ST CHARLES - Marseille Euroméditerranée - L'ESTAQUE | K161: 939001 | L161: VMM2 | M161: 858.492 | N161: 851.699 | O161: 6.793
A162: 701 | B162: 3 | C162: 2022-01-22 | D162: SE20B | H162: 7à9 | I162: L'ESTAQUE - MARTIGUES | K162: 935000 | L162: V2 | M162: 870.081 | N162: 840 | O162: 30.081
A163: 701 | B163: 3 | C163: 2022-01-22 | D163: SE20B | H163: 2à6 | I163: MARTIGUES - MIRAMAS | K163: 935000 | L163: V2 | M163: 840 | N163: 809.28 | O163: 30.72
A164: 701 | B164: 3 | C164: 2022-01-22 | D164: SE20B | G164: 1128 | H164: 2à6 | I164: MIRAMAS - CAVAILLON - AVIGNON FONTCOUVERTE (derrière Cv68 ? ) | K164: 925000 | L164: V2 | M164: 68.536 | N164: 0.75 | O164: 67.786
A165: 701 | B165: 3 | C165: 2022-01-22 | I165: PLEIN GASOIL (1505) | P165: AVIGNON DEPOT
A166: 701 | B166: 3 | C166: 2022-01-23 | D166: SE21B | E166: 100070/71[3] | F166: 922 | H166: ACH | I166: AVIGNON FONTCOUVERTE DEPOT - ARLES | K166: 830000 | M166: 740.743 | N166: 775.947 | O166: 35.204 | P166: AVIGNON DEPOT
A167: 701 | B167: 3 | C167: 2022-01-23 | D167: SE21B | G167: 1021 | H167: 2à6 | I167: ARLES - MIRAMAS | J167: R | K167: 830000 | L167: V1 | M167: 775.947 | N167: 809.42 | O167: 33.473
A168: 701 | B168: 3 | C168: 2022-01-23 | D168: SE21B | E168: 100072/73[3] | F168: 1031 | H168: 2à6 | I168: MIRAMAS - ARLES | K168: 830000 | L168: V2 | M168: 809.519 | N168: 775.883 | O168: 33.636
A169: 701 | B169: 3 | C169: 2022-01-23 | D169: SE21B | H169: ACH | I169: ARLES - TARASCON | K169: 830000 | L169: V2 | M169: 775.883 | N169: 764.325 | O169: 11.558
A170: 701 | B170: 3 | C170: 2022-01-23 | D170: SE21B | H170: 2à6 | I170: Raccordement Sud de Tarascon | K170: 810000 | L170: V1RS | M170: 0 | N170: 1.454 | O170: 1.454
A171: 701 | B171: 3 | C171: 2022-01-23 | D171: SE21B | H171: 2à6 | I171: Raccordement Sud de Tarascon | K171: 810000 | L171: V1S | M171: 0 | N171: 0.261 | O171: 0.261
A172: 701 | B172: 3 | C172: 2022-01-23 | D172: SE21B | H172: 2à6 | I172: TARASCON - LIMITE INFRAPOLE | K172: 810000 | L172: V1 | M172: 0.261 | N172: 0.8 | O172: 0.539
A173: 701 | B173: 3 | C173: 2022-01-23 | D173: SE21B | G173: 1114 | H173: 2à6 | I173: LIMITE INFRAPOLE - BEAUCAIRE MARCHANDISES | J173: R | K173: 810000 | L173: V1 | M173: 0.8 | N173: 1.101 | O173: 0.301
A174: 701 | B174: 3 | C174: 2022-01-23 | D174: SE21B | E174: 100074[2] | F174: 1124 | H174: ACH | I174: BEAUCAIRE MARCHANDISES - LIMITE INFRAPOLE | K174: 810000 | L174: V2 | M174: 1.11 | N174: 0.8 | O174: 0.31
A175: 701 | B175: 3 | C175: 2022-01-23 | D175: SE21B | H175: ACH | I175: LIMITE INFRAPOLE - Racc Nord de Tarascon | K175: 810000 | L175: V2 | M175: 0.8 | N175: 0 | O175: 0.8
A176: 701 | B176: 3 | C176: 2022-01-23 | D176: SE21B | H176: 2à6 | I176: Raccordement Nord de Tarascon | K176: 830351 | L176: V2RN | M176: 762.872 | N176: 761.771 | O176: 1.101
A177: 701 | B177: 3 | C177: 2022-01-23 | D177: SE21B | G177: 1146 | H177: ACH | I177: Racc Nord de Tarascon - AVIGNON | J177: R | K177: 830000 | L177: V2 | M177: 761.771 | N177: 741.345 | O177: 20.426
A178: 701 | B178: 3 | C178: 2022-01-23 | D178: SE21B | E178: 100075[2] | F178: 1224 | H178: ACH | I178: AVIGNON - Racc Nord de Tarascon | K178: 830000 | L178: V1 | M178: 741.345 | N178: 761.35 | O178: 20.005
A179: 701 | B179: 3 | C179: 2022-01-23 | D179: SE21B | H179: 2à6 | I179: Raccordement Nord de Tarascon | K179: 830351 | L179: V1RN | M179: 761.35 | N179: 763.092 | O179: 1.742
A180: 701 | B180: 3 | C180: 2022-01-23 | D180: SE21B | H180: ACH | I180: Racc Nord de Tarascon - LIMITE INFRAPOLE | K180: 810000 | L180: V1 | M180: 0.202 | N180: 0.8 | O180: 0.598
A181: 701 | B181: 3 | C181: 2022-01-23 | D181: SE21B | H181: ACH | I181: LIMITE INFRAPOLE - BEAUCAIRE MARCHANDISES | K181: 810000 | L181: V1 | M181: 0.8 | N181: 1.101 | O181: 0.301
A182: 701 | B182: 3 | C182: 2022-01-23 | D182: SE21B | H182: 2à6 | I182: BEAUCAIRES MARCHANDISES - NIMES | K182: 810000 | L182: V1 | M182: 1.101 | N182: 21.902 | O182: 20.801
A183: 701 | B183: 3 | C183: 2022-01-23 | D183: SE21B | H183: 2à6 | I183: NIMES - ST-CESAIRE P1 | K183: 810000 | L183: V1 | M183: 21.902 | N183: 31.665 | O183: 9.763
A184: 701 | B184: 3 | C184: 2022-01-23 | D184: SE21B | G184: 1353 | H184: 7à9 | I184: ST-CESAIRE P1 - VAUVERT (voie évit) - LE GRAU DU ROI | J184: R | K184: 819000 | L184: VU | M184: 4.672 | N184: 44.689 | O184: 40.017
A185: 701 | B185: 3 | C185: 2022-01-23 | D185: SE21B | E185: 100076[1] | F185: 1400 | H185: 7à9 | I185: LE GRAU DU ROI (VE) - ST-CESAIRE P1 | K185: 819000 | L185: VU | M185: 44.689 | N185: 4.672 | O185: 40.017
A186: 701 | B186: 3 | C186: 2022-01-23 | D186: SE21B | G186: 1457 | H186: 2à6 | I186: ST-CESAIRE P1 - NIMES (voie A) | J186: R | K186: 810000 | L186: V2 | M186: 31.82 | N186: 24.949 | O186: 6.871
A187: 701 | B187: 3 | C187: 2022-01-23 | D187: SE21B | E187: 100077[1] | F187: 1508 | G187: 1512 | H187: ACH | I187: NIMES - NIMES DEPOT | O187: 0 | P187: NIMES DEPOT
A188: 701 | B188: 4 | C188: 2022-01-24 | D188: SE22 | E188: 100086[1] | F188: 1128 | G188: 1131 | H188: ACH | I188: NIMES DEPOT - NIMES P3 | J188: R | K188: 810000 | M188: 25.9 | N188: 24.651 | O188: 1.249 | P188: NIMES DEPOT
A189: 701 | B189: 4 | C189: 2022-01-24 | D189: SE22 | E189: 100101[1] | F189: 1141 | H189: ACH | I189: NIMES P3 - NIMES | K189: 810000 | M189: 24.651 | N189: 26.537 | O189: 1.886
A190: 701 | B190: 4 | C190: 2022-01-24 | D190: SE22 | H190: GéoV | I190: NIMES - ST-CESAIRE P1 | K190: 810000 | L190: V1 | M190: 26.537 | N190: 31.665 | O190: 5.128
A191: 701 | B191: 4 | C191: 2022-01-24 | D191: SE22 | H191: 2à6 | I191: ST-CESAIRE P1 - MONTPELLIER - SETE | K191: 810000 | L191: V1 | M191: 31.665 | N191: 106 | O191: 74.335
A192: 701 | B192: 4 | C192: 2022-01-24 | D192: SE22 | G192: 1325 | H192: 2à6 | I192: SETE - BEZIERS | J192: R | K192: 640000 | L192: V1 | M192: 474.42 | N192: 432.14 | O192: 42.28
A193: 701 | B193: 4 | C193: 2022-01-24 | D193: SE22 | E193: 100100[1] | F193: 1528 | H193: 2à6 | I193: BEZIERS - SETES | K193: 640000 | L193: V2 | M193: 432.275 | N193: 474.42 | O193: 42.145
A194: 701 | B194: 4 | C194: 2022-01-24 | D194: SE22 | H194: 2à6 | I194: SETES - ST-CESAIRE P1 | K194: 810000 | L194: V2 | M194: 106 | N194: 31.82 | O194: 74.18
A195: 701 | B195: 4 | C195: 2022-01-24 | D195: SE22 | H195: GéoV | I195: ST-CESAIRE P1 - NIMES | K195: 810000 | L195: V2 | M195: 31.82 | N195: 25.9678 | O195: 5.8522
A196: 701 | B196: 4 | C196: 2022-01-24 | D196: SE22 | G196: 1737 | H196: ACH | I196: NIMES - NIMES P3 | J196: R | K196: 810000 | M196: 25.9678 | N196: 24.646 | O196: 1.3218
A197: 701 | B197: 4 | C197: 2022-01-24 | D197: SE22 | E197: 100077[1] | F197: 1754 | G197: 1758 | H197: ACH | I197: NIMES P3 - NIMES DEPOT | K197: 810000 | M197: 24.646 | N197: 25.9 | O197: 1.254 | P197: NIMES DEPOT
A198: 701 | B198: 4 | C198: 2022-01-25 | D198: SE23 | E198: 100092/93[2] | F198: 959 | H198: ACH | I198: NIMES DEPOT - NIMES P3 | K198: 810000 | M198: 25.9 | N198: 25.182 | O198: 0.718 | P198: NIMES DEPOT
A199: 701 | B199: 4 | C199: 2022-01-25 | D199: SE23 | H199: 2à6 | I199: NIMES - LIMITE INFRAPOLE | K199: 810000 | L199: V2 | M199: 25.182 | N199: 0.8 | O199: 24.382
A200: 701 | B200: 4 | C200: 2022-01-25 | D200: SE23 | H200: 2à6 | I200: LIMITE INFRAPOLE - TARASCON | K200: 810000 | L200: V2 | M200: 0.8 | N200: 0.261 | O200: 0.539
... 4300 more rows

Sheet Tableau de Bord
A1: FICHIER Loc Ng
S20: =TODAY() -> 2021-11-29

Sheet Programme
K1: MESURE PREVU | M1: ACH PREVU | R1: =SUMIF(H5:H1048576,"ach",O5:O1048576) -> 0 | S1: =IF(H5="","",SUM(O:O))-R1 -> 0
A2: ESV | B2: Semaine | C2: Date | D2: Tournée
K3: =S1 -> 0 | M3: =R1 -> 0
A5: ESV | B5: Semaine | C5: Date | D5: Tournée | E5: Sillon | F5: Dép | G5: Arr | H5: UIC | I5: Parcours / Acheminement | J5: R | K5: N° ligne | L5: Voie | M5: Pk.Départ | N5: Pk.Arrivée | O5: Distance | P5: Garages

Sheet Données (hidden)
A1: ESV | C1: categorie | D1: =DATE(2022,1,1) -> 2022-01-01 | F1: MESURE | G1: ACH SUPP | H1: mesure | I1: EIC | J1: PROG | K1: LOC | M1: PERTE TOTAL | N1: MESURE TOTAL | O1: ACH | P1: KMS PARCOURUS
A2: 701 | C2: MESURE | F2: =ABS('Notes Loc Ng'!D5-'Notes Loc Ng'!E5) -> 0 | G2: =SUMIF('Notes Loc Ng'!A5:A31,"ACH SUPP",F2:F31) -> 0 | H2: =SUMIF('Notes Loc Ng'!A5:A31,"MESURE",F2:F42) -> 0 | I2: =SUMIF('Notes Loc Ng'!A5:A31,"EIC",F2:F42) -> 0 | J2: =SUMIF('Notes Loc Ng'!A5:A31,"EIC",F2:F42) -> 0 | K2: =SUMIF('Notes Loc Ng'!A5:A31,"LOC",F2:F42) -> 0 | M2: =I2+J2+K2 -> 0 | N2: =H2 -> 0 | O2: =Programme!M3 -> 0 | P2: =N2+O2+G2 -> 0
A3: 702 | C3: PROG | F3: =+ABS('Notes Loc Ng'!D6-'Notes Loc Ng'!E6) -> 0 | G3: MESURE SUPP
A4: 703 | C4: EIC | F4: =+ABS('Notes Loc Ng'!D7-'Notes Loc Ng'!E7) -> 0 | G4: =SUMIF('Notes Loc Ng'!A5:A31,"MESURE SUPP",F2:F31) -> 0
C5: LOC | F5: =+ABS('Notes Loc Ng'!D8-'Notes Loc Ng'!E8) -> 0
C6: LTV 10 | F6: =+ABS('Notes Loc Ng'!D9-'Notes Loc Ng'!E9) -> 0
C7: LTV 40 | F7: =+ABS('Notes Loc Ng'!D10-'Notes Loc Ng'!E10) -> 0
C8: LTV 60 | F8: =+ABS('Notes Loc Ng'!D11-'Notes Loc Ng'!E11) -> 0
C9: MESURE SUPP | F9: =+ABS('Notes Loc Ng'!D12-'Notes Loc Ng'!E12) -> 0
C10: ACH SUPP | F10: =+ABS('Notes Loc Ng'!D13-'Notes Loc Ng'!E13) -> 0
F11: =+ABS('Notes Loc Ng'!D14-'Notes Loc Ng'!E14) -> 0
F12: =+ABS('Notes Loc Ng'!D15-'Notes Loc Ng'!E15) -> 0
F13: =+ABS('Notes Loc Ng'!D16-'Notes Loc Ng'!E16) -> 0
F14: =+ABS('Notes Loc Ng'!D17-'Notes Loc Ng'!E17) -> 0
F15: =+ABS('Notes Loc Ng'!D18-'Notes Loc Ng'!E18) -> 0
F16: =+ABS('Notes Loc Ng'!D19-'Notes Loc Ng'!E19) -> 0
F17: =+ABS('Notes Loc Ng'!D20-'Notes Loc Ng'!E20) -> 0
F18: =+ABS('Notes Loc Ng'!D21-'Notes Loc Ng'!E21) -> 0
F19: =+ABS('Notes Loc Ng'!D22-'Notes Loc Ng'!E22) -> 0
F20: =+ABS('Notes Loc Ng'!D23-'Notes Loc Ng'!E23) -> 0
F21: =+ABS('Notes Loc Ng'!D24-'Notes Loc Ng'!E24) -> 0
F22: =+ABS('Notes Loc Ng'!D25-'Notes Loc Ng'!E25) -> 0
F23: =+ABS('Notes Loc Ng'!D26-'Notes Loc Ng'!E26) -> 0
F24: =+ABS('Notes Loc Ng'!D27-'Notes Loc Ng'!E27) -> 0
F25: =+ABS('Notes Loc Ng'!D28-'Notes Loc Ng'!E28) -> 0
F26: =+ABS('Notes Loc Ng'!D29-'Notes Loc Ng'!E29) -> 0
F27: =+ABS('Notes Loc Ng'!D30-'Notes Loc Ng'!E30) -> 0
F28: =+ABS('Notes Loc Ng'!D31-'Notes Loc Ng'!E31) -> 0
F29: =+ABS('Notes Loc Ng'!D32-'Notes Loc Ng'!E32) -> 0
F30: =+ABS('Notes Loc Ng'!D33-'Notes Loc Ng'!E33) -> 0
F31: =+ABS('Notes Loc Ng'!D34-'Notes Loc Ng'!E34) -> 0
F32: =+ABS('Notes Loc Ng'!D35-'Notes Loc Ng'!E35) -> 0
F33: =+ABS('Notes Loc Ng'!D36-'Notes Loc Ng'!E36) -> 0
F34: =+ABS('Notes Loc Ng'!D37-'Notes Loc Ng'!E37) -> 0
F35: =+ABS('Notes Loc Ng'!D38-'Notes Loc Ng'!E38) -> 0
F36: =+ABS('Notes Loc Ng'!D39-'Notes Loc Ng'!E39) -> 0
F37: =+ABS('Notes Loc Ng'!D40-'Notes Loc Ng'!E40) -> 0
F38: =+ABS('Notes Loc Ng'!D41-'Notes Loc Ng'!E41) -> 0
F39: =+ABS('Notes Loc Ng'!D42-'Notes Loc Ng'!E42) -> 0
F40: =+ABS('Notes Loc Ng'!D43-'Notes Loc Ng'!E43) -> 0
F41: =+ABS('Notes Loc Ng'!D44-'Notes Loc Ng'!E44) -> 0
F42: =+ABS('Notes Loc Ng'!D45-'Notes Loc Ng'!E45) -> 0

Sheet Notes Loc Ng
A1: Date | B1: ='Tableau de Bord'!S20 -> 2021-11-29 | C1: Tournée | D1: MESURE PREVU | E1: MESURE REALISE | F1: ACH SUPP | G1: MESURE SUPP | H1: PERTE EIC | J1: PERTE PROG | L1: PERTE LOC | N1: KMS TOTAL | U1: ach | V1: mesure | W1: EIC | X1: PROG | Y1: LOC | Z1: MESURE SUPP | AA1: PERTE TOTAL | AB1: MESURE TOTAL | AC1: ACH | AD1: KMS PARCOURUS
A2: NOTES LOC NG | U2: =SUMIF(A5:A34,"ACH SUPP",T5:T34) -> 0 | V2: =SUMIF(A5:A34,"MESURE",T5:T44) -> 0 | W2: =SUMIF(A5:A34,"EIC",T5:T44) -> 0 | X2: =SUMIF(A5:A34,"PROG",T5:T44) -> 0 | Y2: =SUMIF(A5:A34,"LOC",T5:T44) -> 0 | Z2: =SUMIF(A5:A34,"MESURE SUPP",T5:T40) -> 0 | AA2: =W2+X2+Y2 -> 0 | AB2: =V2 -> 0 | AC2: =Programme!AB3 -> 0 | AD2: =AB2+AC2+U2+Z2 -> 0
D3: =Programme!K3 -> 0 | E3: =V2 -> 0 | F3: =U2 -> 0 | G3: =Z2 -> 0 | H3: =W2 -> 0 | J3: =X2 -> 0 | L3: =Y2 -> 0 | N3: =AD2 -> 0
A4: Catégorie | B4: Ligne | C4: Voie | D4: PK départ | E4: PK Arrivée | F4: Commentaires
S5: 1 | T5: =ABS(D5-E5) -> 0
S6: 2 | T6: 0
S7: 3 | T7: 0
S8: 4 | T8: 0
S9: 5 | T9: 0
S10: 6 | T10: 0
S11: 7 | T11: 0
S12: 8 | T12: 0
S13: 9 | T13: 0
S14: 10 | T14: 0
S15: 11 | T15: 0
S16: 12 | T16: 0
S17: 13 | T17: 0
S18: 14 | T18: 0
S19: 15 | T19: 0
S20: 16 | T20: 0
S21: 17 | T21: 0
S22: 18 | T22: 0
S23: 19 | T23: 0
S24: 20 | T24: 0
S25: 21 | T25: 0
S26: 22 | T26: 0
S27: 23 | T27: 0
S28: 24 | T28: 0
S29: 25 | T29: 0
S30: 26 | T30: 0
S31: 27 | T31: 0
S32: 28 | T32: 0
S33: 29 | T33: 0
T34: 0
T35: 0
T36: 0
T37: 0
T38: 0
T39: 0
T40: 0
T41: 0
T42: 0
T43: 0
T44: 0

Sheet Recherche RT
B3: ESV
C4: CHOIX DE LA VILLE
C6: Départ
B7: Départ | C7: Arrivée | D7: N° RT | E7: Sharepoint
B8: =IFERROR(INDEX(RT!$1:$1048576,MATCH(ROW()-7,Listeville,0),COLUMN()),"") ->  | C8: =IFERROR(INDEX(RT!$1:$1048576,MATCH(ROW()-7,Listeville,0),COLUMN()),"") ->  | D8: =IFERROR(INDEX(RT!$1:$1048576,MATCH(ROW()-7,Listeville,0),COLUMN()),"") ->  | E8: =IFERROR(HYPERLINK(INDEX(RT!$1:$1048576,MATCH(ROW()-7,Listeville,0),COLUMN())),"") -> 
B9: =IFERROR(INDEX(RT!$1:$1048576,MATCH(ROW()-7,Listeville,0),COLUMN()),"") ->  | C9: =IFERROR(INDEX(RT!$1:$1048576,MATCH(ROW()-7,Listeville,0),COLUMN()),"") ->  | D9: =IFERROR(INDEX(RT!$1:$1048576,MATCH(ROW()-7,Listeville,0),COLUMN()),"") ->  | E9: =IFERROR(HYPERLINK(INDEX(RT!$1:$1048576,MATCH(ROW()-7,Listeville,0),COLUMN())),"") -> 
B10: =IFERROR(INDEX(RT!$1:$1048576,MATCH(ROW()-7,Listeville,0),COLUMN()),"") ->  | C10: =IFERROR(INDEX(RT!$1:$1048576,MATCH(ROW()-7,Listeville,0),COLUMN()),"") ->  | D10: =IFERROR(INDEX(RT!$1:$1048576,MATCH(ROW()-7,Listeville,0),COLUMN()),"") ->  | E10: =IFERROR(HYPERLINK(INDEX(RT!$1:$1048576,MATCH(ROW()-7,Listeville,0),COLUMN())),"") -> 
B11: =IFERROR(INDEX(RT!$1:$1048576,MATCH(ROW()-7,Listeville,0),COLUMN()),"") ->  | C11: =IFERROR(INDEX(RT!$1:$1048576,MATCH(ROW()-7,Listeville,0),COLUMN()),"") ->  | D11: =IFERROR(INDEX(RT!$1:$1048576,MATCH(ROW()-7,Listeville,0),COLUMN()),"") ->  | E11: =IFERROR(HYPERLINK(INDEX(RT!$1:$1048576,MATCH(ROW()-7,Listeville,0),COLUMN())),"") -> 
B12: =IFERROR(INDEX(RT!$1:$1048576,MATCH(ROW()-7,Listeville,0),COLUMN()),"") ->  | C12: =IFERROR(INDEX(RT!$1:$1048576,MATCH(ROW()-7,Listeville,0),COLUMN()),"") ->  | D12: =IFERROR(INDEX(RT!$1:$1048576,MATCH(ROW()-7,Listeville,0),COLUMN()),"") ->  | E12: =IFERROR(HYPERLINK(INDEX(RT!$1:$1048576,MATCH(ROW()-7,Listeville,0),COLUMN())),"") -> 
B13: =IFERROR(INDEX(RT!$1:$1048576,MATCH(ROW()-7,Listeville,0),COLUMN()),"") ->  | C13: =IFERROR(INDEX(RT!$1:$1048576,MATCH(ROW()-7,Listeville,0),COLUMN()),"") ->  | D13: =IFERROR(INDEX(RT!$1:$1048576,MATCH(ROW()-7,Listeville,0),COLUMN()),"") ->  | E13: =IFERROR(HYPERLINK(INDEX(RT!$1:$1048576,MATCH(ROW()-7,Listeville,0),COLUMN())),"") -> 
B14: =IFERROR(INDEX(RT!$1:$1048576,MATCH(ROW()-7,Listeville,0),COLUMN()),"") ->  | C14: =IFERROR(INDEX(RT!$1:$1048576,MATCH(ROW()-7,Listeville,0),COLUMN()),"") ->  | D14: =IFERROR(INDEX(RT!$1:$1048576,MATCH(ROW()-7,Listeville,0),COLUMN()),"") ->  | E14: =IFERROR(HYPERLINK(INDEX(RT!$1:$1048576,MATCH(ROW()-7,Listeville,0),COLUMN())),"") -> 
B15: =IFERROR(INDEX(RT!$1:$1048576,MATCH(ROW()-7,Listeville,0),COLUMN()),"") ->  | C15: =IFERROR(INDEX(RT!$1:$1048576,MATCH(ROW()-7,Listeville,0),COLUMN()),"") ->  | D15: =IFERROR(INDEX(RT!$1:$1048576,MATCH(ROW()-7,Listeville,0),COLUMN()),"") ->  | E15: =IFERROR(HYPERLINK(INDEX(RT!$1:$1048576,MATCH(ROW()-7,Listeville,0),COLUMN())),"") -> 
B16: =IFERROR(INDEX(RT!$1:$1048576,MATCH(ROW()-7,Listeville,0),COLUMN()),"") ->  | C16: =IFERROR(INDEX(RT!$1:$1048576,MATCH(ROW()-7,Listeville,0),COLUMN()),"") ->  | D16: =IFERROR(INDEX(RT!$1:$1048576,MATCH(ROW()-7,Listeville,0),COLUMN()),"") ->  | E16: =IFERROR(HYPERLINK(INDEX(RT!$1:$1048576,MATCH(ROW()-7,Listeville,0),COLUMN())),"") -> 
B17: =IFERROR(INDEX(RT!$1:$1048576,MATCH(ROW()-7,Listeville,0),COLUMN()),"") ->  | C17: =IFERROR(INDEX(RT!$1:$1048576,MATCH(ROW()-7,Listeville,0),COLUMN()),"") ->  | D17: =IFERROR(INDEX(RT!$1:$1048576,MATCH(ROW()-7,Listeville,0),COLUMN()),"") ->  | E17: =IFERROR(HYPERLINK(INDEX(RT!$1:$1048576,MATCH(ROW()-7,Listeville,0),COLUMN())),"") -> 
B18: =IFERROR(INDEX(RT!$1:$1048576,MATCH(ROW()-7,Listeville,0),COLUMN()),"") ->  | C18: =IFERROR(INDEX(RT!$1:$1048576,MATCH(ROW()-7,Listeville,0),COLUMN()),"") ->  | D18: =IFERROR(INDEX(RT!$1:$1048576,MATCH(ROW()-7,Listeville,0),COLUMN()),"") ->  | E18: =IFERROR(HYPERLINK(INDEX(RT!$1:$1048576,MATCH(ROW()-7,Listeville,0),COLUMN())),"") -> 
B19: =IFERROR(INDEX(RT!$1:$1048576,MATCH(ROW()-7,Listeville,0),COLUMN()),"") ->  | C19: =IFERROR(INDEX(RT!$1:$1048576,MATCH(ROW()-7,Listeville,0),COLUMN()),"") ->  | D19: =IFERROR(INDEX(RT!$1:$1048576,MATCH(ROW()-7,Listeville,0),COLUMN()),"") ->  | E19: =IFERROR(HYPERLINK(INDEX(RT!$1:$1048576,MATCH(ROW()-7,Listeville,0),COLUMN())),"") -> 
B20: =IFERROR(INDEX(RT!$1:$1048576,MATCH(ROW()-7,Listeville,0),COLUMN()),"") ->  | C20: =IFERROR(INDEX(RT!$1:$1048576,MATCH(ROW()-7,Listeville,0),COLUMN()),"") ->  | D20: =IFERROR(INDEX(RT!$1:$1048576,MATCH(ROW()-7,Listeville,0),COLUMN()),"") ->  | E20: =IFERROR(HYPERLINK(INDEX(RT!$1:$1048576,MATCH(ROW()-7,Listeville,0),COLUMN())),"") -> 
B21: =IFERROR(INDEX(RT!$1:$1048576,MATCH(ROW()-7,Listeville,0),COLUMN()),"") ->  | C21: =IFERROR(INDEX(RT!$1:$1048576,MATCH(ROW()-7,Listeville,0),COLUMN()),"") ->  | D21: =IFERROR(INDEX(RT!$1:$1048576,MATCH(ROW()-7,Listeville,0),COLUMN()),"") ->  | E21: =IFERROR(HYPERLINK(INDEX(RT!$1:$1048576,MATCH(ROW()-7,Listeville,0),COLUMN())),"") -> 
B22: =IFERROR(INDEX(RT!$1:$1048576,MATCH(ROW()-7,Listeville,0),COLUMN()),"") ->  | C22: =IFERROR(INDEX(RT!$1:$1048576,MATCH(ROW()-7,Listeville,0),COLUMN()),"") ->  | D22: =IFERROR(INDEX(RT!$1:$1048576,MATCH(ROW()-7,Listeville,0),COLUMN()),"") ->  | E22: =IFERROR(HYPERLINK(INDEX(RT!$1:$1048576,MATCH(ROW()-7,Listeville,0),COLUMN())),"") -> 

Sheet RT (hidden)
A1: Parcours | B1: Départ | C1: Arrivée | D1: N° RT | E1: Sharepoint | F1: Ville | H1: 0
A2: =B2&"-"&C2 -> Abancourt-Le Tréport Mers | B2: Abancourt | C2: Le Tréport Mers | D2: 12041 | E2: https://sncf.sharepoint.com/:b:/r/sites/Sharepoint-UES-ESV/Documents%20partages/RT/12041.pdf?csf=1&web=1&e=zPvnAW | F2: =IF(OR(B2=ville,C2=ville),MAX($F$1:F1)+1,0) -> 0
A3: Abbeville-Le Tréport Mers | B3: Abbeville | C3: Le Tréport Mers | D3: 12042 | E3: https://sncf.sharepoint.com/:b:/r/sites/Sharepoint-UES-ESV/Documents%20partages/RT/12042.pdf?csf=1&web=1&e=0M8rGm | F3: =IF(OR(B3=ville,C3=ville),MAX($F$1:F2)+1,0) -> 0
A4: Achères-Pontoise | B4: Achères | C4: Pontoise | D4: 12210 | E4: https://sncf.sharepoint.com/:b:/r/sites/Sharepoint-UES-ESV/Documents%20partages/RT/12210.pdf?csf=1&web=1&e=VPypIE | F4: =IF(OR(B4=ville,C4=ville),MAX($F$1:F2)+1,0) -> 0
A5: Agen-Auch | B5: Agen | C5: Auch | D5: 14933 | E5: https://sncf.sharepoint.com/:b:/r/sites/Sharepoint-UES-ESV/Documents%20partages/RT/14933.pdf?csf=1&web=1&e=jDpkQb | F5: =IF(OR(B5=ville,C5=ville),MAX($F$1:F4)+1,0) -> 0
A6: Agen-Montauban | B6: Agen | C6: Montauban | D6: 14603 | E6: https://sncf.sharepoint.com/:b:/r/sites/Sharepoint-UES-ESV/Documents%20partages/RT/14603.pdf?csf=1&web=1&e=3tJti4 | F6: =IF(OR(B6=ville,C6=ville),MAX($F$1:F5)+1,0) -> 0
A7: Aix en Provence-Marseille | B7: Aix en Provence | C7: Marseille | D7: 15022 | E7: https://sncf.sharepoint.com/:b:/r/sites/Sharepoint-UES-ESV/Documents%20partages/RT/15022.pdf?csf=1&web=1&e=be4eXz | F7: =IF(OR(B7=ville,C7=ville),MAX($F$1:F6)+1,0) -> 0
A8: Aix Les Bains-Annecy | B8: Aix Les Bains | C8: Annecy | D8: 15073 | E8: https://sncf.sharepoint.com/:b:/r/sites/Sharepoint-UES-ESV/Documents%20partages/RT/15073.pdf?csf=1&web=1&e=BWlNnU | F8: =IF(OR(B8=ville,C8=ville),MAX($F$1:F7)+1,0) -> 0
A9: Ambérieu-Chambéry Challes Les Eaux | B9: Ambérieu | C9: Chambéry Challes Les Eaux | D9: 15132 | E9: https://sncf.sharepoint.com/:b:/r/sites/Sharepoint-UES-ESV/Documents%20partages/RT/15132.pdf?csf=1&web=1&e=J7jFt9 | F9: =IF(OR(B9=ville,C9=ville),MAX($F$1:F8)+1,0) -> 0
A10: Amiens-Boulogne Ville | B10: Amiens | C10: Boulogne Ville | D10: 12100 | E10: https://sncf.sharepoint.com/:b:/r/sites/Sharepoint-UES-ESV/Documents%20partages/RT/12100.pdf?csf=1&web=1&e=S6qk9t | F10: =IF(OR(B10=ville,C10=ville),MAX($F$1:F9)+1,0) -> 0
A11: Amiens-Laon | B11: Amiens | C11: Laon | D11: 12222 | E11: https://sncf.sharepoint.com/:b:/r/sites/Sharepoint-UES-ESV/Documents%20partages/RT/12222.pdf?csf=1&web=1&e=DQQ5NC | F11: =IF(OR(B11=ville,C11=ville),MAX($F$1:F10)+1,0) -> 0
A12: Amiens-Serqueux | B12: Amiens | C12: Serqueux | D12: 12110 | E12: https://sncf.sharepoint.com/:b:/r/sites/Sharepoint-UES-ESV/Documents%20partages/RT/12110.pdf?csf=1&web=1&e=dP7OnG | F12: =IF(OR(B12=ville,C12=ville),MAX($F$1:F11)+1,0) -> 0
A13: Angoûleme-Coutras | B13: Angoûleme | C13: Coutras | D13: 14106 | E13: https://sncf.sharepoint.com/:b:/r/sites/Sharepoint-UES-ESV/Documents%20partages/RT/14106.pdf?csf=1&web=1&e=AXwTRq | F13: =IF(OR(B13=ville,C13=ville),MAX($F$1:F12)+1,0) -> 0
A14: Annecy-La Roche sur Foron | B14: Annecy | C14: La Roche sur Foron | D14: 15970 | E14: https://sncf.sharepoint.com/:b:/r/sites/Sharepoint-UES-ESV/Documents%20partages/RT/15970.pdf?csf=1&web=1&e=PNqZnO | F14: =IF(OR(B14=ville,C14=ville),MAX($F$1:F13)+1,0) -> 0
A15: Annemasse-Evian Les Bains | B15: Annemasse | C15: Evian Les Bains | D15: 15079 | E15: https://sncf.sharepoint.com/:b:/r/sites/Sharepoint-UES-ESV/Documents%20partages/RT/15079.pdf?csf=1&web=1&e=Sz8nHW | F15: =IF(OR(B15=ville,C15=ville),MAX($F$1:F14)+1,0) -> 0
A16: Argentan-Caen | B16: Argentan | C16: Caen | D16: 13412 | E16: https://sncf.sharepoint.com/:b:/r/sites/Sharepoint-UES-ESV/Documents%20partages/RT/13412.pdf?csf=1&web=1&e=BTJ7Rb | F16: =IF(OR(B16=ville,C16=ville),MAX($F$1:F14)+1,0) -> 0
A17: Argenteuil-Noisy le Sec | B17: Argenteuil | C17: Noisy le Sec | D17: 12400 | E17: https://sncf.sharepoint.com/:b:/r/sites/Sharepoint-UES-ESV/Documents%20partages/RT/12400.pdf?csf=1&web=1&e=BC4eIu | F17: =IF(OR(B17=ville,C17=ville),MAX($F$1:F16)+1,0) -> 0
A18: Armentières-Lestrem | B18: Armentières | C18: Lestrem | D18: 12936 | E18: https://sncf.sharepoint.com/:b:/r/sites/Sharepoint-UES-ESV/Documents%20partages/RT/12936.pdf?csf=1&web=1&e=InRt0B | F18: =IF(OR(B18=ville,C18=ville),MAX($F$1:F17)+1,0) -> 0
A19: Arras-Hazebrouck | B19: Arras | C19: Hazebrouck | D19: 12211 | E19: https://sncf.sharepoint.com/:b:/r/sites/Sharepoint-UES-ESV/Documents%20partages/RT/12211.pdf?csf=1&web=1&e=jrajQ0 | F19: =IF(OR(B19=ville,C19=ville),MAX($F$1:F18)+1,0) -> 0
A20: Arras-Saint Pol sur Ternoise | B20: Arras | C20: Saint Pol sur Ternoise | D20: 12930 | E20: https://sncf.sharepoint.com/:b:/r/sites/Sharepoint-UES-ESV/Documents%20partages/RT/12930.pdf?csf=1&web=1&e=7QHOJX | F20: =IF(OR(B20=ville,C20=ville),MAX($F$1:F19)+1,0) -> 0
A21: Arvant-Aurillac | B21: Arvant | C21: Aurillac | D21: 15059 | E21: https://sncf.sharepoint.com/:b:/r/sites/Sharepoint-UES-ESV/Documents%20partages/RT/15059.pdf?csf=1&web=1&e=c7PPNj | F21: =IF(OR(B21=ville,C21=ville),MAX($F$1:F20)+1,0) -> 0
A22: Arvant-Langogne | B22: Arvant | C22: Langogne | D22: 15058 | E22: https://sncf.sharepoint.com/:b:/r/sites/Sharepoint-UES-ESV/Documents%20partages/RT/15058.pdf?csf=1&web=1&e=TMr6tJ | F22: =IF(OR(B22=ville,C22=ville),MAX($F$1:F21)+1,0) -> 0
A23: Auray-Quiberon | B23: Auray | C23: Quiberon | D23: 13966 | E23: https://sncf.sharepoint.com/:b:/r/sites/Sharepoint-UES-ESV/Documents%20partages/RT/13966.pdf?csf=1&web=1&e=wbIqtu | F23: =IF(OR(B23=ville,C23=ville),MAX($F$1:F22)+1,0) -> 0
A24: Aurillac-Viescamp sous Jallés | B24: Aurillac | C24: Viescamp sous Jallés | D24: 15952 | E24: https://sncf.sharepoint.com/:b:/r/sites/Sharepoint-UES-ESV/Documents%20partages/RT/15952.pdf?csf=1&web=1&e=vk10Qf | F24: =IF(OR(B24=ville,C24=ville),MAX($F$1:F23)+1,0) -> 0
A25: Autun-Etang | B25: Autun | C25: Etang | D25: 15030 | E25: https://sncf.sharepoint.com/:b:/r/sites/Sharepoint-UES-ESV/Documents%20partages/RT/15030.pdf?csf=1&web=1&e=NUzF5Q | F25: =IF(OR(B25=ville,C25=ville),MAX($F$1:F24)+1,0) -> 0
A26: Bayonne-Saint Jean Pied de Port | B26: Bayonne | C26: Saint Jean Pied de Port | D26: 14039 | E26: https://sncf.sharepoint.com/:b:/r/sites/Sharepoint-UES-ESV/Documents%20partages/RT/14039.pdf?csf=1&web=1&e=TZeEno | F26: =IF(OR(B26=ville,C26=ville),MAX($F$1:F25)+1,0) -> 0
A27: Beauvais-Abancourt | B27: Beauvais | C27: Abancourt | D27: 12040 | E27: https://sncf.sharepoint.com/:b:/r/sites/Sharepoint-UES-ESV/Documents%20partages/RT/12040.pdf?csf=1&web=1&e=thmO6i | F27: =IF(OR(B27=ville,C27=ville),MAX($F$1:F26)+1,0) -> 0
A28: Belfort-Delle | B28: Belfort | C28: Delle | D28: 11925 | E28: https://sncf.sharepoint.com/:b:/r/sites/Sharepoint-UES-ESV/Documents%20partages/RT/11925.pdf?csf=1&web=1&e=bKsc90 | F28: =IF(OR(B28=ville,C28=ville),MAX($F$1:F27)+1,0) -> 0
A29: Belfort-Mulhouse | B29: Belfort | C29: Mulhouse | D29: 11406 | E29: https://sncf.sharepoint.com/:b:/r/sites/Sharepoint-UES-ESV/Documents%20partages/RT/11406.pdf?csf=1&web=1&e=LdfNj8 | F29: =IF(OR(B29=ville,C29=ville),MAX($F$1:F27)+1,0) -> 0
A30: Bellegarde-Annemasse | B30: Bellegarde | C30: Annemasse | D30: 15072 | E30: https://sncf.sharepoint.com/:b:/r/sites/Sharepoint-UES-ESV/Documents%20partages/RT/15072.pdf?csf=1&web=1&e=MwAaZm | F30: =IF(OR(B30=ville,C30=ville),MAX($F$1:F29)+1,0) -> 0
A31: Béning-Sarreguemines | B31: Béning | C31: Sarreguemines | D31: 11058 | E31: https://sncf.sharepoint.com/:b:/r/sites/Sharepoint-UES-ESV/Documents%20partages/RT/11058.pdf?csf=1&web=1&e=UqEcNy | F31: =IF(OR(B31=ville,C31=ville),MAX($F$1:F30)+1,0) -> 0
A32: Béthune-Saint Pol sur Ternoise | B32: Béthune | C32: Saint Pol sur Ternoise | D32: 12931 | E32: https://sncf.sharepoint.com/:b:/r/sites/Sharepoint-UES-ESV/Documents%20partages/RT/12931.pdf?csf=1&web=1&e=f3hQlA | F32: =IF(OR(B32=ville,C32=ville),MAX($F$1:F31)+1,0) -> 0
A33: Bettembourg-Metz Ville | B33: Bettembourg | C33: Metz Ville | D33: 11301 | E33: https://sncf.sharepoint.com/:b:/r/sites/Sharepoint-UES-ESV/Documents%20partages/RT/11301.pdf?csf=1&web=1&e=UIFzdH | F33: =IF(OR(B33=ville,C33=ville),MAX($F$1:F32)+1,0) -> 0
A34: Biganos Facture-Arcachon | B34: Biganos Facture | C34: Arcachon | D34: 14141 | E34: https://sncf.sharepoint.com/:b:/r/sites/Sharepoint-UES-ESV/Documents%20partages/RT/14141.pdf?csf=1&web=1&e=hwDjZh | F34: =IF(OR(B34=ville,C34=ville),MAX($F$1:F33)+1,0) -> 0
A35: Blainville Damelevières-Lure | B35: Blainville Damelevières | C35: Lure | D35: 11030 | E35: https://sncf.sharepoint.com/:b:/r/sites/Sharepoint-UES-ESV/Documents%20partages/RT/11030.pdf?csf=1&web=1&e=pmQfrk | F35: =IF(OR(B35=ville,C35=ville),MAX($F$1:F34)+1,0) -> 0
A36: Blanquefort-La Pointe de Grave | B36: Blanquefort | C36: La Pointe de Grave | D36: 14038 | E36: https://sncf.sharepoint.com/:b:/r/sites/Sharepoint-UES-ESV/Documents%20partages/RT/14038.pdf?csf=1&web=1&e=IgzJRN | F36: =IF(OR(B36=ville,C36=ville),MAX($F$1:F35)+1,0) -> 0
A37: Bondy-Aulnay sous Bois | B37: Bondy | C37: Aulnay sous Bois | D37: 11018 | E37: https://sncf.sharepoint.com/:b:/r/sites/Sharepoint-UES-ESV/Documents%20partages/RT/11018.pdf?csf=1&web=1&e=YYukIl | F37: =IF(OR(B37=ville,C37=ville),MAX($F$1:F36)+1,0) -> 0
A38: Bordeaux-Agen | B38: Bordeaux | C38: Agen | D38: 14602 | E38: https://sncf.sharepoint.com/:b:/r/sites/Sharepoint-UES-ESV/Documents%20partages/RT/14602.pdf?csf=1&web=1&e=smnUs3 | F38: =IF(OR(B38=ville,C38=ville),MAX($F$1:F37)+1,0) -> 0
A39: Bordeaux-Blanquefort | B39: Bordeaux | C39: Blanquefort | D39: 14037 | E39: https://sncf.sharepoint.com/:b:/r/sites/Sharepoint-UES-ESV/Documents%20partages/RT/14037.pdf?csf=1&web=1&e=jE24y1 | F39: =IF(OR(B39=ville,C39=ville),MAX($F$1:F38)+1,0) -> 0
A40: Bordeaux-Dax | B40: Bordeaux | C40: Dax | D40: 14108 | E40: https://sncf.sharepoint.com/:b:/r/sites/Sharepoint-UES-ESV/Documents%20partages/RT/14108.pdf?csf=1&web=1&e=Xxyh7s | F40: =IF(OR(B40=ville,C40=ville),MAX($F$1:F39)+1,0) -> 0
A41: Bourg En Bresse-Bellegarde | B41: Bourg En Bresse | C41: Bellegarde | D41: 15134 | E41: https://sncf.sharepoint.com/:b:/r/sites/Sharepoint-UES-ESV/Documents%20partages/RT/15134.pdf?csf=1&web=1&e=2F6Yfs | F41: =IF(OR(B41=ville,C41=ville),MAX($F$1:F40)+1,0) -> 0
A42: Bourg En Bresse-Besançon Viotte | B42: Bourg En Bresse | C42: Besançon Viotte | D42: 15113 | E42: https://sncf.sharepoint.com/:b:/r/sites/Sharepoint-UES-ESV/Documents%20partages/RT/15113.pdf?csf=1&web=1&e=L2V6n0 | F42: =IF(OR(B42=ville,C42=ville),MAX($F$1:F41)+1,0) -> 0
A43: Bourg En Bresse-Lyon Perrache | B43: Bourg En Bresse | C43: Lyon Perrache | D43: 15150 | E43: https://sncf.sharepoint.com/:b:/r/sites/Sharepoint-UES-ESV/Documents%20partages/RT/15150.pdf?csf=1&web=1&e=P0xar0 | F43: =IF(OR(B43=ville,C43=ville),MAX($F$1:F42)+1,0) -> 0
A44: Bourges-Montluçon | B44: Bourges | C44: Montluçon | D44: 14066 | E44: https://sncf.sharepoint.com/:b:/r/sites/Sharepoint-UES-ESV/Documents%20partages/RT/14066.pdf?csf=1&web=1&e=4EK8Jc | F44: =IF(OR(B44=ville,C44=ville),MAX($F$1:F43)+1,0) -> 0
A45: Bréauté Beuzeville-Fécamp | B45: Bréauté Beuzeville | C45: Fécamp | D45: 13036 | E45: https://sncf.sharepoint.com/:b:/r/sites/Sharepoint-UES-ESV/Documents%20partages/RT/13036.pdf?csf=1&web=1&e=gUCtkU | F45: =IF(OR(B45=ville,C45=ville),MAX($F$1:F44)+1,0) -> 0
A46: Brétigny-Châteaudun | B46: Brétigny | C46: Châteaudun | D46: 14001 | E46: https://sncf.sharepoint.com/:b:/r/sites/Sharepoint-UES-ESV/Documents%20partages/RT/14001.pdf?csf=1&web=1&e=nSJ19O | F46: =IF(OR(B46=ville,C46=ville),MAX($F$1:F45)+1,0) -> 0
A47: Brive La Gaillarde-Capdenac | B47: Brive La Gaillarde | C47: Capdenac | D47: 14975 | E47: https://sncf.sharepoint.com/:b:/r/sites/Sharepoint-UES-ESV/Documents%20partages/RT/14975.pdf?csf=1&web=1&e=m8KnWh | F47: =IF(OR(B47=ville,C47=ville),MAX($F$1:F46)+1,0) -> 0
A48: Brive la Gaillarde-Montauban | B48: Brive la Gaillarde | C48: Montauban | D48: 14205 | E48: https://sncf.sharepoint.com/:b:/r/sites/Sharepoint-UES-ESV/Documents%20partages/RT/14205.pdf?csf=1&web=1&e=W79N0A | F48: =IF(OR(B48=ville,C48=ville),MAX($F$1:F47)+1,0) -> 0
A49: Busigny-Aulnoye | B49: Busigny | C49: Aulnoye | D49: 12301 | E49: https://sncf.sharepoint.com/:b:/r/sites/Sharepoint-UES-ESV/Documents%20partages/RT/12301.pdf?csf=1&web=1&e=cw7izx | F49: =IF(OR(B49=ville,C49=ville),MAX($F$1:F48)+1,0) -> 0
A50: Busigny-Cambrai Ville | B50: Busigny | C50: Cambrai Ville | D50: 12310 | E50: https://sncf.sharepoint.com/:b:/r/sites/Sharepoint-UES-ESV/Documents%20partages/RT/12310.pdf?csf=1&web=1&e=6oOdJ9 | F50: =IF(OR(B50=ville,C50=ville),MAX($F$1:F49)+1,0) -> 0
A51: Busigny-Lourches | B51: Busigny | C51: Lourches | D51: 12310 | E51: https://sncf.sharepoint.com/:b:/r/sites/Sharepoint-UES-ESV/Documents%20partages/RT/12310.pdf?csf=1&web=1&e=6oOdJ9 | F51: =IF(OR(B51=ville,C51=ville),MAX($F$1:F50)+1,0) -> 0
A52: Busigny-Somain | B52: Busigny | C52: Somain | D52: 12310 | E52: https://sncf.sharepoint.com/:b:/r/sites/Sharepoint-UES-ESV/Documents%20partages/RT/12310.pdf?csf=1&web=1&e=6oOdJ9 | F52: =IF(OR(B52=ville,C52=ville),MAX($F$1:F51)+1,0) -> 0
A53: Busseau-Felletin | B53: Busseau | C53: Felletin | D53: 14041 | E53: https://sncf.sharepoint.com/:b:/r/sites/Sharepoint-UES-ESV/Documents%20partages/RT/14041.pdf?csf=1&web=1&e=FVhnmQ | F53: =IF(OR(B53=ville,C53=ville),MAX($F$1:F52)+1,0) -> 0
A54: Caen-Cherbourg | B54: Caen | C54: Cherbourg | D54: 13303 | E54: https://sncf.sharepoint.com/:b:/r/sites/Sharepoint-UES-ESV/Documents%20partages/RT/13303.pdf?csf=1&web=1&e=LQcZwt | F54: =IF(OR(B54=ville,C54=ville),MAX($F$1:F53)+1,0) -> 0
A55: Calais Ville-Boulogne Ville | B55: Calais Ville | C55: Boulogne Ville | D55: 12101 | E55: https://sncf.sharepoint.com/:b:/r/sites/Sharepoint-UES-ESV/Documents%20partages/RT/12101.pdf?csf=1&web=1&e=n9Qc71 | F55: =IF(OR(B55=ville,C55=ville),MAX($F$1:F54)+1,0) -> 0
A56: Cambrai ville-Douai | B56: Cambrai ville | C56: Douai | D56: 12937 | E56: https://sncf.sharepoint.com/:b:/r/sites/Sharepoint-UES-ESV/Documents%20partages/RT/12937.pdf?csf=1&web=1&e=QGcA6Z | F56: =IF(OR(B56=ville,C56=ville),MAX($F$1:F55)+1,0) -> 0
A57: Capdenac-Tessonnières | B57: Capdenac | C57: Tessonnières | D57: 14976 | E57: https://sncf.sharepoint.com/:b:/r/sites/Sharepoint-UES-ESV/Documents%20partages/RT/14976.pdf?csf=1&web=1&e=SK5nGe | F57: =IF(OR(B57=ville,C57=ville),MAX($F$1:F56)+1,0) -> 0
A58: Carcassonne-Limoux | B58: Carcassonne | C58: Limoux | D58: 15064 | E58: https://sncf.sharepoint.com/:b:/r/sites/Sharepoint-UES-ESV/Documents%20partages/RT/15064.pdf?csf=1&web=1&e=s9njeS | F58: =IF(OR(B58=ville,C58=ville),MAX($F$1:F57)+1,0) -> 0
A59: Carcassonne-Port Bou | B59: Carcassonne | C59: Port Bou | D59: 15303 | E59: https://sncf.sharepoint.com/:b:/r/sites/Sharepoint-UES-ESV/Documents%20partages/RT/15303.pdf?csf=1&web=1&e=H8DLuK | F59: =IF(OR(B59=ville,C59=ville),MAX($F$1:F58)+1,0) -> 0
A60: Carpentras-Sorgues Châteauneuf du Pape | B60: Carpentras | C60: Sorgues Châteauneuf du Pape | D60: 15026 | E60: https://sncf.sharepoint.com/:b:/r/sites/Sharepoint-UES-ESV/Documents%20partages/RT/15026.pdf?csf=1&web=1&e=GGO3H7 | F60: =IF(OR(B60=ville,C60=ville),MAX($F$1:F59)+1,0) -> 0
A61: Châlons en Champagne-Chaumont | B61: Châlons en Champagne | C61: Chaumont | D61: 11162 | E61: https://sncf.sharepoint.com/:b:/r/sites/Sharepoint-UES-ESV/Documents%20partages/RT/11162.pdf?csf=1&web=1&e=sreb5i | F61: =IF(OR(B61=ville,C61=ville),MAX($F$1:F60)+1,0) -> 0
A62: Châlons en Champagne-Verdun | B62: Châlons en Champagne | C62: Verdun | D62: 11041 | E62: https://sncf.sharepoint.com/:b:/r/sites/Sharepoint-UES-ESV/Documents%20partages/RT/11041.pdf?csf=1&web=1&e=AIunVo | F62: =IF(OR(B62=ville,C62=ville),MAX($F$1:F61)+1,0) -> 0
A63: Chambéry Challes Les Eaux-Annecy | B63: Chambéry Challes Les Eaux | C63: Annecy | D63: 15077 | E63: https://sncf.sharepoint.com/:b:/r/sites/Sharepoint-UES-ESV/Documents%20partages/RT/15077.pdf?csf=1&web=1&e=hOrd7T | F63: =IF(OR(B63=ville,C63=ville),MAX($F$1:F62)+1,0) -> 0
A64: Chambéry Challes Les Eaux-Modane | B64: Chambéry Challes Les Eaux | C64: Modane | D64: 15133 | E64: https://sncf.sharepoint.com/:b:/r/sites/Sharepoint-UES-ESV/Documents%20partages/RT/15133.pdf?csf=1&web=1&e=PMw6eb | F64: =IF(OR(B64=ville,C64=ville),MAX($F$1:F63)+1,0) -> 0
A65: Charleville Mézières-Givet | B65: Charleville Mézières | C65: Givet | D65: 11941 | E65: https://sncf.sharepoint.com/:b:/r/sites/Sharepoint-UES-ESV/Documents%20partages/RT/11941.pdf?csf=1&web=1&e=osLClO | F65: =IF(OR(B65=ville,C65=ville),MAX($F$1:F63)+1,0) -> 0
A66: =B66&"-"&C66 -> Charleville Mézières-Longuyon | B66: Charleville Mézières | C66: Longuyon | D66: 11702 | E66: https://sncf.sharepoint.com/:b:/r/sites/Sharepoint-UES-ESV/Documents%20partages/RT/11702.pdf?csf=1&web=1&e=R2Vr4w | F66: =IF(OR(B66=ville,C66=ville),MAX($F$1:F65)+1,0) -> 0
A67: Chartres-Le Mans | B67: Chartres | C67: Le Mans | D67: 13603 | E67: https://sncf.sharepoint.com/:b:/r/sites/Sharepoint-UES-ESV/Documents%20partages/RT/13603.pdf?csf=1&web=1&e=1F3wJI | F67: =IF(OR(B67=ville,C67=ville),MAX($F$1:F66)+1,0) -> 0
A68: Chasse sur Rhône-Pierrelatte | B68: Chasse sur Rhône | C68: Pierrelatte | D68: 15107 | E68: https://sncf.sharepoint.com/:b:/r/sites/Sharepoint-UES-ESV/Documents%20partages/RT/15107.pdf?csf=1&web=1&e=yXRKko | F68: =IF(OR(B68=ville,C68=ville),MAX($F$1:F67)+1,0) -> 0
A69: Château Thierry-Vitry le François | B69: Château Thierry | C69: Vitry le François | D69: 11101 | E69: https://sncf.sharepoint.com/:b:/r/sites/Sharepoint-UES-ESV/Documents%20partages/RT/11101.pdf?csf=1&web=1&e=vFUcMV | F69: =IF(OR(B69=ville,C69=ville),MAX($F$1:F68)+1,0) -> 0
A70: Châteaubriant-Rennes | B70: Châteaubriant | C70: Rennes | D70: 13063 | E70: https://sncf.sharepoint.com/:b:/r/sites/Sharepoint-UES-ESV/Documents%20partages/RT/13063.pdf?csf=1&web=1&e=agjlPW | F70: =IF(OR(B70=ville,C70=ville),MAX($F$1:F69)+1,0) -> 0
A71: Châteaudun-Tours | B71: Châteaudun | C71: Tours | D71: 14061 | E71: https://sncf.sharepoint.com/:b:/r/sites/Sharepoint-UES-ESV/Documents%20partages/RT/14061.pdf?csf=1&web=1&e=rXKTSW | F71: =IF(OR(B71=ville,C71=ville),MAX($F$1:F70)+1,0) -> 0
A72: Châteauroux-Limoges Bénédictins | B72: Châteauroux | C72: Limoges Bénédictins | D72: 14203 | E72: https://sncf.sharepoint.com/:b:/r/sites/Sharepoint-UES-ESV/Documents%20partages/RT/14203.pdf?csf=1&web=1&e=mNsI1t | F72: =IF(OR(B72=ville,C72=ville),MAX($F$1:F71)+1,0) -> 0
A73: Châteauroux-Vierzon | B73: Châteauroux | C73: Vierzon | D73: 14202 | E73: https://sncf.sharepoint.com/:b:/r/sites/Sharepoint-UES-ESV/Documents%20partages/RT/14202.pdf?csf=1&web=1&e=XVMaBH | F73: =IF(OR(B73=ville,C73=ville),MAX($F$1:F72)+1,0) -> 0
A74: Clermont Ferrand-Nevers | B74: Clermont Ferrand | C74: Nevers | D74: 15403 | E74: https://sncf.sharepoint.com/:b:/r/sites/Sharepoint-UES-ESV/Documents%20partages/RT/15403.pdf?csf=1&web=1&e=nLDjXR | F74: =IF(OR(B74=ville,C74=ville),MAX($F$1:F73)+1,0) -> 0
A75: Clermont Ferrand-Saint Etienne Châteaucreux | B75: Clermont Ferrand | C75: Saint Etienne Châteaucreux | D75: 15053 | E75: https://sncf.sharepoint.com/:b:/r/sites/Sharepoint-UES-ESV/Documents%20partages/RT/15053.pdf?csf=1&web=1&e=H7huLW | F75: =IF(OR(B75=ville,C75=ville),MAX($F$1:F74)+1,0) -> 0
A76: Clerval-Belfort | B76: Clerval | C76: Belfort | D76: 11371 | E76: https://sncf.sharepoint.com/:b:/r/sites/Sharepoint-UES-ESV/Documents%20partages/RT/11371.pdf?csf=1&web=1&e=Pkw1au | F76: =IF(OR(B76=ville,C76=ville),MAX($F$1:F75)+1,0) -> 0
A77: Clisson-Cholet | B77: Clisson | C77: Cholet | D77: 14968 | E77: https://sncf.sharepoint.com/:b:/r/sites/Sharepoint-UES-ESV/Documents%20partages/RT/14968.pdf?csf=1&web=1&e=vDP1bw | F77: =IF(OR(B77=ville,C77=ville),MAX($F$1:F76)+1,0) -> 0
A78: Colmar-Mulhouse | B78: Colmar | C78: Mulhouse | D78: 11304 | E78: https://sncf.sharepoint.com/:b:/r/sites/Sharepoint-UES-ESV/Documents%20partages/RT/11304.pdf?csf=1&web=1&e=NFYlPL | F78: =IF(OR(B78=ville,C78=ville),MAX($F$1:F77)+1,0) -> 0
A79: Compiègne-Longueau | B79: Compiègne | C79: Longueau | D79: 12045 | E79: https://sncf.sharepoint.com/:b:/r/sites/Sharepoint-UES-ESV/Documents%20partages/RT/12045.pdf?csf=1&web=1&e=BM74im | F79: =IF(OR(B79=ville,C79=ville),MAX($F$1:F78)+1,0) -> 0
A80: Conflans Jarny-Hagondage | B80: Conflans Jarny | C80: Hagondage | D80: 11331 | E80: https://sncf.sharepoint.com/:b:/r/sites/Sharepoint-UES-ESV/Documents%20partages/RT/11331.pdf?csf=1&web=1&e=47yFDN | F80: =IF(OR(B80=ville,C80=ville),MAX($F$1:F79)+1,0) -> 0
A81: Coutras-Bordeaux | B81: Coutras | C81: Bordeaux | D81: 14107 | E81: https://sncf.sharepoint.com/:b:/r/sites/Sharepoint-UES-ESV/Documents%20partages/RT/14107.pdf?csf=1&web=1&e=PhucgG | F81: =IF(OR(B81=ville,C81=ville),MAX($F$1:F80)+1,0) -> 0
A82: Creil-Beauvais | B82: Creil | C82: Beauvais | D82: 12007 | E82: https://sncf.sharepoint.com/:b:/r/sites/Sharepoint-UES-ESV/Documents%20partages/RT/12007.pdf?csf=1&web=1&e=m1diGT | F82: =IF(OR(B82=ville,C82=ville),MAX($F$1:F81)+1,0) -> 0
A83: Creil-Busigny | B83: Creil | C83: Busigny | D83: 12300 | E83: https://sncf.sharepoint.com/:b:/r/sites/Sharepoint-UES-ESV/Documents%20partages/RT/12300.pdf?csf=1&web=1&e=OLM2mK | F83: =IF(OR(B83=ville,C83=ville),MAX($F$1:F78)+1,0) -> 0
A84: Crépy en Valois-Laon | B84: Crépy en Valois | C84: Laon | D84: 12008 | E84: https://sncf.sharepoint.com/:b:/r/sites/Sharepoint-UES-ESV/Documents%20partages/RT/12008.pdf?csf=1&web=1&e=aShgYd | F84: =IF(OR(B84=ville,C84=ville),MAX($F$1:F83)+1,0) -> 0
A85: Culmont Chalindrey-Belfort | B85: Culmont Chalindrey | C85: Belfort | D85: 11404 | E85: https://sncf.sharepoint.com/:b:/r/sites/Sharepoint-UES-ESV/Documents%20partages/RT/11404.pdf?csf=1&web=1&e=BHSwAG | F85: =IF(OR(B85=ville,C85=ville),MAX($F$1:F84)+1,0) -> 0
A86: Culoz-La Plaine | B86: Culoz | C86: La Plaine | D86: 15131 | E86: https://sncf.sharepoint.com/:b:/r/sites/Sharepoint-UES-ESV/Documents%20partages/RT/15131.pdf?csf=1&web=1&e=pa21FS | F86: =IF(OR(B86=ville,C86=ville),MAX($F$1:F85)+1,0) -> 0
A87: Dijon-Bourg En Bresse | B87: Dijon | C87: Bourg En Bresse | D87: 15114 | E87: https://sncf.sharepoint.com/:b:/r/sites/Sharepoint-UES-ESV/Documents%20partages/RT/15114.pdf?csf=1&web=1&e=tVbfeE | F87: =IF(OR(B87=ville,C87=ville),MAX($F$1:F86)+1,0) -> 0
A88: Dijon-Clerval | B88: Dijon | C88: Clerval | D88: 15111 | E88: https://sncf.sharepoint.com/:b:/r/sites/Sharepoint-UES-ESV/Documents%20partages/RT/15111.pdf?csf=1&web=1&e=eSJ3dE | F88: =IF(OR(B88=ville,C88=ville),MAX($F$1:F87)+1,0) -> 0
A89: Dijon-Mâcon ville | B89: Dijon | C89: Mâcon ville | D89: 15104 | E89: https://sncf.sharepoint.com/:b:/r/sites/Sharepoint-UES-ESV/Documents%20partages/RT/15104.pdf?csf=1&web=1&e=xytcry | F89: =IF(OR(B89=ville,C89=ville),MAX($F$1:F88)+1,0) -> 0
A90: Dijon-Is sur Tille | B90: Dijon | C90: Is sur Tille | D90: 15110 | E90: https://sncf.sharepoint.com/:b:/r/sites/Sharepoint-UES-ESV/Documents%20partages/RT/15110.pdf?csf=1&web=1&e=ixjYFa | F90: =IF(OR(B90=ville,C90=ville),MAX($F$1:F89)+1,0) -> 0
A91: Dol-Saint Brieuc | B91: Dol | C91: Saint Brieuc | D91: 13064 | E91: https://sncf.sharepoint.com/:b:/r/sites/Sharepoint-UES-ESV/Documents%20partages/RT/13064.pdf?csf=1&web=1&e=BfnEOu | F91: =IF(OR(B91=ville,C91=ville),MAX($F$1:F90)+1,0) -> 0
A92: Dole-Vallorbe | B92: Dole | C92: Vallorbe | D92: 15112 | E92: https://sncf.sharepoint.com/:b:/r/sites/Sharepoint-UES-ESV/Documents%20partages/RT/15112.pdf?csf=1&web=1&e=kYYdbc | F92: =IF(OR(B92=ville,C92=ville),MAX($F$1:F91)+1,0) -> 0
A93: Don Sainghin-Béthune | B93: Don Sainghin | C93: Béthune | D93: 12935 | E93: https://sncf.sharepoint.com/:b:/r/sites/Sharepoint-UES-ESV/Documents%20partages/RT/12935.pdf?csf=1&web=1&e=d91WaB | F93: =IF(OR(B93=ville,C93=ville),MAX($F$1:F92)+1,0) -> 0
A94: Douai-Lille Flandres | B94: Douai | C94: Lille Flandres | D94: 12203 | E94: https://sncf.sharepoint.com/:b:/r/sites/Sharepoint-UES-ESV/Documents%20partages/RT/12203.pdf?csf=1&web=1&e=PL6O1O | F94: =IF(OR(B94=ville,C94=ville),MAX($F$1:F93)+1,0) -> 0
A95: Douai-Valenciennes | B95: Douai | C95: Valenciennes | D95: 12223 | E95: https://sncf.sharepoint.com/:b:/r/sites/Sharepoint-UES-ESV/Documents%20partages/RT/12223.pdf?csf=1&web=1&e=AzwKE4 | F95: =IF(OR(B95=ville,C95=ville),MAX($F$1:F94)+1,0) -> 0
A96: Dunkerque-Calais Ville | B96: Dunkerque | C96: Calais Ville | D96: 12030 | E96: https://sncf.sharepoint.com/:b:/r/sites/Sharepoint-UES-ESV/Documents%20partages/RT/12030.pdf?csf=1&web=1&e=Y5DC2m | F96: =IF(OR(B96=ville,C96=ville),MAX($F$1:F95)+1,0) -> 0
A97: Epernay-Reims | B97: Epernay | C97: Reims | D97: 11131 | E97: https://sncf.sharepoint.com/:b:/r/sites/Sharepoint-UES-ESV/Documents%20partages/RT/11131.pdf?csf=1&web=1&e=yvYzbp | F97: =IF(OR(B97=ville,C97=ville),MAX($F$1:F96)+1,0) -> 0
A98: Epinal-Remiremont | B98: Epinal | C98: Remiremont | D98: 11031 | E98: https://sncf.sharepoint.com/:b:/r/sites/Sharepoint-UES-ESV/Documents%20partages/RT/11031.pdf?csf=1&web=1&e=vcbrEx | F98: =IF(OR(B98=ville,C98=ville),MAX($F$1:F97)+1,0) -> 0
A99: Epinal-Rothau | B99: Epinal | C99: Rothau | D99: 11033 | E99: https://sncf.sharepoint.com/:b:/r/sites/Sharepoint-UES-ESV/Documents%20partages/RT/11033.pdf?csf=1&web=1&e=P9kyiJ | F99: =IF(OR(B99=ville,C99=ville),MAX($F$1:F98)+1,0) -> 0
A100: Esternay-Oiry | B100: Esternay | C100: Oiry | D100: 11044 | E100: https://sncf.sharepoint.com/:b:/r/sites/Sharepoint-UES-ESV/Documents%20partages/RT/11044.pdf?csf=1&web=1&e=HlpthQ | F100: =IF(OR(B100=ville,C100=ville),MAX($F$1:F99)+1,0) -> 0
A101: Grasse-Cannes-Voyageurs | B101: Grasse | C101: Cannes-Voyageurs | D101: 15924 | E101: https://sncf.sharepoint.com/:b:/r/sites/Sharepoint-UES-ESV/Documents%20partages/RT/15924.pdf?csf=1&web=1&e=EYVi1j | F101: =IF(OR(B101=ville,C101=ville),MAX($F$1:F100)+1,0) -> 0
A102: Grenoble-Chambéry Challes Les Eaux | B102: Grenoble | C102: Chambéry Challes Les Eaux | D102: 15154 | E102: https://sncf.sharepoint.com/:b:/r/sites/Sharepoint-UES-ESV/Documents%20partages/RT/15154.pdf?csf=1&web=1&e=AgcO9P | F102: =IF(OR(B102=ville,C102=ville),MAX($F$1:F101)+1,0) -> 0
A103: Gretz Armainvilliers-Romilly sur Seine | B103: Gretz Armainvilliers | C103: Romilly sur Seine | D103: 11401 | E103: https://sncf.sharepoint.com/:b:/r/sites/Sharepoint-UES-ESV/Documents%20partages/RT/11401.pdf?csf=1&web=1&e=OzUR0m | F103: =IF(OR(B103=ville,C103=ville),MAX($F$1:F102)+1,0) -> 0
A104: Haubourdin-Bif de Saint André | B104: Haubourdin | C104: Bif de Saint André | D104: 12225 | E104: https://sncf.sharepoint.com/:b:/r/sites/Sharepoint-UES-ESV/Documents%20partages/RT/12225.pdf?csf=1&web=1&e=0iXQr3 | F104: =IF(OR(B104=ville,C104=ville),MAX($F$1:F101)+1,0) -> 0
A105: Hazebrouck-Calais Ville | B105: Hazebrouck | C105: Calais Ville | D105: 12700 | E105: https://sncf.sharepoint.com/:b:/r/sites/Sharepoint-UES-ESV/Documents%20partages/RT/12700.pdf?csf=1&web=1&e=B9DFXP | F105: =IF(OR(B105=ville,C105=ville),MAX($F$1:F104)+1,0) -> 0
A106: Hazebrouck-Dunkerque | B106: Hazebrouck | C106: Dunkerque | D106: 12212 | E106: https://sncf.sharepoint.com/:b:/r/sites/Sharepoint-UES-ESV/Documents%20partages/RT/12212.pdf?csf=1&web=1&e=LiadJ9 | F106: =IF(OR(B106=ville,C106=ville),MAX($F$1:F105)+1,0) -> 0
A107: Hirson-Charleville Mézières | B107: Hirson | C107: Charleville Mézières | D107: 11701 | E107: https://sncf.sharepoint.com/:b:/r/sites/Sharepoint-UES-ESV/Documents%20partages/RT/11701.pdf?csf=1&web=1&e=5nVTXK | F107: =IF(OR(B107=ville,C107=ville),MAX($F$1:F105)+1,0) -> 0
A108: Is sur Tille-Toul | B108: Is sur Tille | C108: Toul | D108: 15501 | E108: https://sncf.sharepoint.com/:b:/r/sites/Sharepoint-UES-ESV/Documents%20partages/RT/11501.pdf?csf=1&web=1&e=DTmtAd | F108: =IF(OR(B108=ville,C108=ville),MAX($F$1:F107)+1,0) -> 0
A109: Joué Lés Tours-Loches | B109: Joué Lés Tours | C109: Loches | D109: 14063 | E109: https://sncf.sharepoint.com/:b:/r/sites/Sharepoint-UES-ESV/Documents%20partages/RT/14063.pdf?csf=1&web=1&e=xlHF1i | F109: =IF(OR(B109=ville,C109=ville),MAX($F$1:F108)+1,0) -> 0
A110: Kalhausen-Sarralbe | B110: Kalhausen | C110: Sarralbe | D110: 11029 | E110: https://sncf.sharepoint.com/:b:/r/sites/Sharepoint-UES-ESV/Documents%20partages/RT/11029.pdf?csf=1&web=1&e=wM2vrW | F110: =IF(OR(B110=ville,C110=ville),MAX($F$1:F109)+1,0) -> 0
A111: Km 75-Châlons en Champagne | B111: Km 75 | C111: Châlons en Champagne | D111: 11046 | E111: https://sncf.sharepoint.com/:b:/r/sites/Sharepoint-UES-ESV/Documents%20partages/RT/11046.pdf?csf=1&web=1&e=WHrmUe | F111: =IF(OR(B111=ville,C111=ville),MAX($F$1:F110)+1,0) -> 0
A112: Kruth-Mulhouse | B112: Kruth | C112: Mulhouse | D112: 11923 | E112: https://sncf.sharepoint.com/:b:/r/sites/Sharepoint-UES-ESV/Documents%20partages/RT/11923.pdf?csf=1&web=1&e=gXfiY6 | F112: =IF(OR(B112=ville,C112=ville),MAX($F$1:F111)+1,0) -> 0
A113: La Madeleine-Comines | B113: La Madeleine | C113: Comines | D113: 12032 | E113: https://sncf.sharepoint.com/:b:/r/sites/Sharepoint-UES-ESV/Documents%20partages/RT/12032.pdf?csf=1&web=1&e=NR88ot | F113: =IF(OR(B113=ville,C113=ville),MAX($F$1:F112)+1,0) -> 0
A114: La Pauline-Hyères-Hyères | B114: La Pauline-Hyères | C114: Hyères | D114: 15920 | E114: https://sncf.sharepoint.com/:b:/r/sites/Sharepoint-UES-ESV/Documents%20partages/RT/15920.pdf?csf=1&web=1&e=gsdgn6 | F114: =IF(OR(B114=ville,C114=ville),MAX($F$1:F113)+1,0) -> 0
A115: La Possonnière-Cholet | B115: La Possonnière | C115: Cholet | D115: 13074 | E115: https://sncf.sharepoint.com/:b:/r/sites/Sharepoint-UES-ESV/Documents%20partages/RT/13074.pdf?csf=1&web=1&e=CrJSIm | F115: =IF(OR(B115=ville,C115=ville),MAX($F$1:F114)+1,0) -> 0
A116: La Roche sur Foron-Annemasse | B116: La Roche sur Foron | C116: Annemasse | D116: 15971 | E116: https://sncf.sharepoint.com/:b:/r/sites/Sharepoint-UES-ESV/Documents%20partages/RT/15971.pdf?csf=1&web=1&e=gvFuhI | F116: =IF(OR(B116=ville,C116=ville),MAX($F$1:F115)+1,0) -> 0
A117: La Roche sur Yon -Les Sables d'Olonne | B117: La Roche sur Yon | C117: Les Sables d'Olonne | D117: 14969 | E117: https://sncf.sharepoint.com/:b:/r/sites/Sharepoint-UES-ESV/Documents%20partages/RT/14969.pdf?csf=1&web=1&e=QokAb7 | F117: =IF(OR(B117=ville,C117=ville),MAX($F$1:F116)+1,0) -> 0
A118: La Rochelle-Bordeaux | B118: La Rochelle | C118: Bordeaux | D118: 14501 | E118: https://sncf.sharepoint.com/:b:/r/sites/Sharepoint-UES-ESV/Documents%20partages/RT/14501.pdf?csf=1&web=1&e=Dx5Zn3 | F118: =IF(OR(B118=ville,C118=ville),MAX($F$1:F117)+1,0) -> 0
A119: Langogne-Nimes | B119: Langogne | C119: Nimes | D119: 15960 | E119: https://sncf.sharepoint.com/:b:/r/sites/Sharepoint-UES-ESV/Documents%20partages/RT/15960.pdf?csf=1&web=1&e=QRFhqK | F119: =IF(OR(B119=ville,C119=ville),MAX($F$1:F118)+1,0) -> 0
A120: Laon-Châlons en Champagne | B120: Laon | C120: Châlons en Champagne | D120: 11161 | E120: https://sncf.sharepoint.com/:b:/r/sites/Sharepoint-UES-ESV/Documents%20partages/RT/11161.pdf?csf=1&web=1&e=T5iqKD | F120: =IF(OR(B120=ville,C120=ville),MAX($F$1:F119)+1,0) -> 0
A121: Laon-Hirson | B121: Laon | C121: Hirson | D121: 12047 | E121: https://sncf.sharepoint.com/:b:/r/sites/Sharepoint-UES-ESV/Documents%20partages/RT/12047.pdf?csf=1&web=1&e=IjFLMi | F121: =IF(OR(B121=ville,C121=ville),MAX($F$1:F120)+1,0) -> 0
A122: Lauterbourg-Strasbourg Ville | B122: Lauterbourg | C122: Strasbourg Ville | D122: 11025 | E122: https://sncf.sharepoint.com/:b:/r/sites/Sharepoint-UES-ESV/Documents%20partages/RT/11025.pdf?csf=1&web=1&e=I8WfKb | F122: =IF(OR(B122=ville,C122=ville),MAX($F$1:F121)+1,0) -> 0
A123: Le Buisson-Libourne | B123: Le Buisson | C123: Libourne | D123: 14031 | E123: https://sncf.sharepoint.com/:b:/r/sites/Sharepoint-UES-ESV/Documents%20partages/RT/14031.pdf?csf=1&web=1&e=yI8NOB | F123: =IF(OR(B123=ville,C123=ville),MAX($F$1:F122)+1,0) -> 0
A124: Le Buisson-Sarlat | B124: Le Buisson | C124: Sarlat | D124: 14032 | E124: https://sncf.sharepoint.com/:b:/r/sites/Sharepoint-UES-ESV/Documents%20partages/RT/14032.pdf?csf=1&web=1&e=3lckhw | F124: =IF(OR(B124=ville,C124=ville),MAX($F$1:F123)+1,0) -> 0
A125: Le Mans-Angers Saint Laud | B125: Le Mans | C125: Angers Saint Laud | D125: 13701 | E125: https://sncf.sharepoint.com/:b:/r/sites/Sharepoint-UES-ESV/Documents%20partages/RT/13701.pdf?csf=1&web=1&e=4FlLLR | F125: =IF(OR(B125=ville,C125=ville),MAX($F$1:F124)+1,0) -> 0
A126: Le Mans-Argentan | B126: Le Mans | C126: Argentan | D126: 13411 | E126: https://sncf.sharepoint.com/:b:/r/sites/Sharepoint-UES-ESV/Documents%20partages/RT/13411.pdf?csf=1&web=1&e=gB8rpi | F126: =IF(OR(B126=ville,C126=ville),MAX($F$1:F125)+1,0) -> 0
A127: Le Mans-Rennes | B127: Le Mans | C127: Rennes | D127: 13605 | E127: https://sncf.sharepoint.com/:b:/r/sites/Sharepoint-UES-ESV/Documents%20partages/RT/13605.pdf?csf=1&web=1&e=jpY2f0 | F127: =IF(OR(B127=ville,C127=ville),MAX($F$1:F126)+1,0) -> 0
A128: Le Mans-Tours | B128: Le Mans | C128: Tours | D128: 13711 | E128: https://sncf.sharepoint.com/:b:/r/sites/Sharepoint-UES-ESV/Documents%20partages/RT/13711.pdf?csf=1&web=1&e=iUB9tJ | F128: =IF(OR(B128=ville,C128=ville),MAX($F$1:F127)+1,0) -> 0
A129: Le Teil-Nimes | B129: Le Teil | C129: Nimes | D129: 15122 | E129: https://sncf.sharepoint.com/:b:/r/sites/Sharepoint-UES-ESV/Documents%20partages/RT/15122.pdf?csf=1&web=1&e=cMxY9b | F129: =IF(OR(B129=ville,C129=ville),MAX($F$1:F128)+1,0) -> 0
A130: =B130&"-"&C130 -> Lens-Don Sainghin | B130: Lens | C130: Don Sainghin | D130: 12214 | E130: https://sncf.sharepoint.com/:b:/r/sites/Sharepoint-UES-ESV/Documents%20partages/RT/12214.pdf?csf=1&web=1&e=dcbN78 | F130: =IF(OR(B130=ville,C130=ville),MAX($F$1:F129)+1,0) -> 0
A131: Lérouville -Metz Ville | B131: Lérouville | C131: Metz Ville | D131: 11200 | E131: https://sncf.sharepoint.com/:b:/r/sites/Sharepoint-UES-ESV/Documents%20partages/RT/11200.pdf?csf=1&web=1&e=gbgSBt | F131: =IF(OR(B131=ville,C131=ville),MAX($F$1:F130)+1,0) -> 0
A132: Lille Flandres-Don Sainghin | B132: Lille Flandres | C132: Don Sainghin | D132: 12215 | E132: https://sncf.sharepoint.com/:b:/r/sites/Sharepoint-UES-ESV/Documents%20partages/RT/12215.pdf?csf=1&web=1&e=BdoVJ5 | F132: =IF(OR(B132=ville,C132=ville),MAX($F$1:F129)+1,0) -> 0
A133: Lille Flandres-Hazebrouck | B133: Lille Flandres | C133: Hazebrouck | D133: 12701 | E133: https://sncf.sharepoint.com/:b:/r/sites/Sharepoint-UES-ESV/Documents%20partages/RT/12701.pdf?csf=1&web=1&e=l4CuOp | F133: =IF(OR(B133=ville,C133=ville),MAX($F$1:F132)+1,0) -> 0
A134: Lille Flandres-Mouscron | B134: Lille Flandres | C134: Mouscron | D134: 12204 | E134: https://sncf.sharepoint.com/:b:/r/sites/Sharepoint-UES-ESV/Documents%20partages/RT/12204.pdf?csf=1&web=1&e=RU0nMM | F134: =IF(OR(B134=ville,C134=ville),MAX($F$1:F133)+1,0) -> 0
A135: Lille Flandres-Tournai | B135: Lille Flandres | C135: Tournai | D135: 12033 | E135: https://sncf.sharepoint.com/:b:/r/sites/Sharepoint-UES-ESV/Documents%20partages/RT/12033.pdf?csf=1&web=1&e=LDF3xM | F135: =IF(OR(B135=ville,C135=ville),MAX($F$1:F134)+1,0) -> 0
A136: Limoges Bénédictins-Brive La Gaillarde | B136: Limoges Bénédictins | C136: Brive La Gaillarde | D136: 14204 | E136: https://sncf.sharepoint.com/:b:/r/sites/Sharepoint-UES-ESV/Documents%20partages/RT/14204.pdf?csf=1&web=1&e=GuyvvY | F136: =IF(OR(B136=ville,C136=ville),MAX($F$1:F135)+1,0) -> 0
A137: Limoges Bénédictins-Périgueux | B137: Limoges Bénédictins | C137: Périgueux | D137: 14945 | E137: https://sncf.sharepoint.com/:b:/r/sites/Sharepoint-UES-ESV/Documents%20partages/RT/14945.pdf?csf=1&web=1&e=aF7t8D | F137: =IF(OR(B137=ville,C137=ville),MAX($F$1:F136)+1,0) -> 0
A138: Lison-Dol | B138: Lison | C138: Dol | D138: 13932 | E138: https://sncf.sharepoint.com/:b:/r/sites/Sharepoint-UES-ESV/Documents%20partages/RT/13932.pdf?csf=1&web=1&e=YLaMil | F138: =IF(OR(B138=ville,C138=ville),MAX($F$1:F137)+1,0) -> 0
A139: Longueau-Douai | B139: Longueau | C139: Douai | D139: 12202 | E139: https://sncf.sharepoint.com/:b:/r/sites/Sharepoint-UES-ESV/Documents%20partages/RT/12202.pdf?csf=1&web=1&e=5kXqv3 | F139: =IF(OR(B139=ville,C139=ville),MAX($F$1:F136)+1,0) -> 0
A140: Longueville-Provins | B140: Longueville | C140: Provins | D140: 11012 | E140: https://sncf.sharepoint.com/:b:/r/sites/Sharepoint-UES-ESV/Documents%20partages/RT/11012.pdf?csf=1&web=1&e=qBLady | F140: =IF(OR(B140=ville,C140=ville),MAX($F$1:F139)+1,0) -> 0
A141: Longuyon-Thionville | B141: Longuyon | C141: Thionville | D141: 11703 | E141: https://sncf.sharepoint.com/:b:/r/sites/Sharepoint-UES-ESV/Documents%20partages/RT/11703.pdf?csf=1&web=1&e=LOgHHb | F141: =IF(OR(B141=ville,C141=ville),MAX($F$1:F140)+1,0) -> 0
A142: Lunéville-Saint Dié | B142: Lunéville | C142: Saint Dié | D142: 11035 | E142: https://sncf.sharepoint.com/:b:/r/sites/Sharepoint-UES-ESV/Documents%20partages/RT/11035.pdf?csf=1&web=1&e=CC2p6o | F142: =IF(OR(B142=ville,C142=ville),MAX($F$1:F141)+1,0) -> 0
A143: Lutterbach-Mulhouse | B143: Lutterbach | C143: Mulhouse | D143: 11927 | E143: https://sncf.sharepoint.com/:b:/r/sites/Sharepoint-UES-ESV/Documents%20partages/RT/11927.pdf?csf=1&web=1&e=e6u2ky | F143: =IF(OR(B143=ville,C143=ville),MAX($F$1:F142)+1,0) -> 0
A144: Lyon Perrache-Ambérieu | B144: Lyon Perrache | C144: Ambérieu | D144: 15151 | E144: https://sncf.sharepoint.com/:b:/r/sites/Sharepoint-UES-ESV/Documents%20partages/RT/15151.pdf?csf=1&web=1&e=z5dRBT | F144: =IF(OR(B144=ville,C144=ville),MAX($F$1:F143)+1,0) -> 0
A145: Lyon Perrache-Chasse sur Rhône | B145: Lyon Perrache | C145: Chasse sur Rhône | D145: 15120 | E145: https://sncf.sharepoint.com/:b:/r/sites/Sharepoint-UES-ESV/Documents%20partages/RT/15120.pdf?csf=1&web=1&e=WEaHNs | F145: =IF(OR(B145=ville,C145=ville),MAX($F$1:F144)+1,0) -> 0
A146: Lyon Perrache-Saint André Le Gaz | B146: Lyon Perrache | C146: Saint André Le Gaz | D146: 15152 | E146: https://sncf.sharepoint.com/:b:/r/sites/Sharepoint-UES-ESV/Documents%20partages/RT/15152.pdf?csf=1&web=1&e=VEuLnh | F146: =IF(OR(B146=ville,C146=ville),MAX($F$1:F145)+1,0) -> 0
A147: Mâcon Ville-Ambérieux | B147: Mâcon Ville | C147: Ambérieux | D147: 15130 | E147: https://sncf.sharepoint.com/:b:/r/sites/Sharepoint-UES-ESV/Documents%20partages/RT/15130.pdf?csf=1&web=1&e=dmso3L | F147: =IF(OR(B147=ville,C147=ville),MAX($F$1:F146)+1,0) -> 0
A148: Mâcon Ville-Lyon Perrache | B148: Mâcon Ville | C148: Lyon Perrache | D148: 15105 | E148: https://sncf.sharepoint.com/:b:/r/sites/Sharepoint-UES-ESV/Documents%20partages/RT/15105.pdf?csf=1&web=1&e=Q4sxpx | F148: =IF(OR(B148=ville,C148=ville),MAX($F$1:F147)+1,0) -> 0
A149: Malaunay-Dieppe | B149: Malaunay | C149: Dieppe | D149: 13037 | E149: https://sncf.sharepoint.com/:b:/r/sites/Sharepoint-UES-ESV/Documents%20partages/RT/13037.pdf?csf=1&web=1&e=iw5Ltb | F149: =IF(OR(B149=ville,C149=ville),MAX($F$1:F148)+1,0) -> 0
A150: Mantes La Jolie-Caen | B150: Mantes La Jolie | C150: Caen | D150: 13301 | E150: https://sncf.sharepoint.com/:b:/r/sites/Sharepoint-UES-ESV/Documents%20partages/RT/13301.pdf?csf=1&web=1&e=jFzgba | F150: =IF(OR(B150=ville,C150=ville),MAX($F$1:F149)+1,0) -> 0
A151: Mantes La Jolie-Rouen RD | B151: Mantes La Jolie | C151: Rouen RD | D151: 13107 | E151: https://sncf.sharepoint.com/:b:/r/sites/Sharepoint-UES-ESV/Documents%20partages/RT/13107.pdf?csf=1&web=1&e=5Devhv | F151: =IF(OR(B151=ville,C151=ville),MAX($F$1:F150)+1,0) -> 0
A152: Marseille-Vintimille | B152: Marseille | C152: Vintimille | D152: 15200 | E152: https://sncf.sharepoint.com/:b:/r/sites/Sharepoint-UES-ESV/Documents%20partages/RT/15200.pdf?csf=1&web=1&e=xixH79 | F152: =IF(OR(B152=ville,C152=ville),MAX($F$1:F151)+1,0) -> 0
A153: Meaux-Reims | B153: Meaux | C153: Reims | D153: 11015 | E153: https://sncf.sharepoint.com/:b:/r/sites/Sharepoint-UES-ESV/Documents%20partages/RT/11015.pdf?csf=1&web=1&e=h4SbU2 | F153: =IF(OR(B153=ville,C153=ville),MAX($F$1:F152)+1,0) -> 0
A154: Metz Ville-Saarbrucken | B154: Metz Ville | C154: Saarbrucken | D154: 12201 | E154: https://sncf.sharepoint.com/:b:/r/sites/Sharepoint-UES-ESV/Documents%20partages/RT/12201.pdf?csf=1&web=1&e=7RPF30 | F154: =IF(OR(B154=ville,C154=ville),MAX($F$1:F153)+1,0) -> 0
A155: Metzeral-Colmar | B155: Metzeral | C155: Colmar | D155: 11921 | E155: https://sncf.sharepoint.com/:b:/r/sites/Sharepoint-UES-ESV/Documents%20partages/RT/11921.pdf?csf=1&web=1&e=CzsNK9 | F155: =IF(OR(B155=ville,C155=ville),MAX($F$1:F154)+1,0) -> 0
A156: Miramas-Marseille par Port de Bouc | B156: Miramas | C156: Marseille par Port de Bouc | D156: 15160 | E156: https://sncf.sharepoint.com/:b:/r/sites/Sharepoint-UES-ESV/Documents%20partages/RT/15160.pdf?csf=1&web=1&e=ODHQzh | F156: =IF(OR(B156=ville,C156=ville),MAX($F$1:F155)+1,0) -> 0
A157: Montauban-Toulouse Matabiau | B157: Montauban | C157: Toulouse Matabiau | D157: 14207 | E157: https://sncf.sharepoint.com/:b:/r/sites/Sharepoint-UES-ESV/Documents%20partages/RT/14207.pdf?csf=1&web=1&e=fHw2HG | F157: =IF(OR(B157=ville,C157=ville),MAX($F$1:F156)+1,0) -> 0
A158: Montereau-Nuits sous Ravières | B158: Montereau | C158: Nuits sous Ravières | D158: 15102 | E158: https://sncf.sharepoint.com/:b:/r/sites/Sharepoint-UES-ESV/Documents%20partages/RT/15102.pdf?csf=1&web=1&e=1cIp8L | F158: =IF(OR(B158=ville,C158=ville),MAX($F$1:F157)+1,0) -> 0
A159: Montluçon-Grannat | B159: Montluçon | C159: Grannat | D159: 15955 | E159: https://sncf.sharepoint.com/:b:/r/sites/Sharepoint-UES-ESV/Documents%20partages/RT/15955.pdf?csf=1&web=1&e=rATiXV | F159: =IF(OR(B159=ville,C159=ville),MAX($F$1:F156)+1,0) -> 0
A160: Montluçon-St Sulpice Laurière | B160: Montluçon | C160: St Sulpice Laurière | D160: 14944 | E160: https://sncf.sharepoint.com/:b:/r/sites/Sharepoint-UES-ESV/Documents%20partages/RT/14944.pdf?csf=1&web=1&e=U08uHB | F160: =IF(OR(B160=ville,C160=ville),MAX($F$1:F159)+1,0) -> 0
A161: Morcenx-Mont de Marsan | B161: Morcenx | C161: Mont de Marsan | D161: 14932 | E161: https://sncf.sharepoint.com/:b:/r/sites/Sharepoint-UES-ESV/Documents%20partages/RT/14932.pdf?csf=1&web=1&e=tsLjKM | F161: =IF(OR(B161=ville,C161=ville),MAX($F$1:F160)+1,0) -> 0
A162: Moret Veneux les Sablons-Nevers | B162: Moret Veneux les Sablons | C162: Nevers | D162: 15402 | E162: https://sncf.sharepoint.com/:b:/r/sites/Sharepoint-UES-ESV/Documents%20partages/RT/15402.pdf?csf=1&web=1&e=e18FbY | F162: =IF(OR(B162=ville,C162=ville),MAX($F$1:F161)+1,0) -> 0
A163: Mulhouse-Bale | B163: Mulhouse | C163: Bale | D163: 11305 | E163: https://sncf.sharepoint.com/:b:/r/sites/Sharepoint-UES-ESV/Documents%20partages/RT/11305.pdf?csf=1&web=1&e=L7tYhD | F163: =IF(OR(B163=ville,C163=ville),MAX($F$1:F162)+1,0) -> 0
A164: Nancy-Metz Ville | B164: Nancy | C164: Metz Ville | D164: 11351 | E164: https://sncf.sharepoint.com/:b:/r/sites/Sharepoint-UES-ESV/Documents%20partages/RT/11351.pdf?csf=1&web=1&e=OuYLzt | F164: =IF(OR(B164=ville,C164=ville),MAX($F$1:F161)+1,0) -> 0
A165: Nancy ville-Merrey | B165: Nancy ville | C165: Merrey | D165: 11937 | E165: https://sncf.sharepoint.com/:b:/r/sites/Sharepoint-UES-ESV/Documents%20partages/RT/11937.pdf?csf=1&web=1&e=g0gEyu | F165: =IF(OR(B165=ville,C165=ville),MAX($F$1:F164)+1,0) -> 0
A166: Nantes-Angers Saint Laud | B166: Nantes | C166: Angers Saint Laud | D166: 13703 | E166: https://sncf.sharepoint.com/:b:/r/sites/Sharepoint-UES-ESV/Documents%20partages/RT/13703.pdf?csf=1&web=1&e=BpZ222 | F166: =IF(OR(B166=ville,C166=ville),MAX($F$1:F165)+1,0) -> 0
A167: Nantes-Châteaubriant | B167: Nantes | C167: Châteaubriant | D167: 13073 | E167: https://sncf.sharepoint.com/:b:/r/sites/Sharepoint-UES-ESV/Documents%20partages/RT/13073.pdf?csf=1&web=1&e=OYchuK | F167: =IF(OR(B167=ville,C167=ville),MAX($F$1:F166)+1,0) -> 0
A168: Nantes-La Rochelle | B168: Nantes | C168: La Rochelle | D168: 14500 | E168: https://sncf.sharepoint.com/:b:/r/sites/Sharepoint-UES-ESV/Documents%20partages/RT/14500.pdf?csf=1&web=1&e=liyxIH | F168: =IF(OR(B168=ville,C168=ville),MAX($F$1:F167)+1,0) -> 0
A169: Nantes-Redon | B169: Nantes | C169: Redon | D169: 13705 | E169: https://sncf.sharepoint.com/:b:/r/sites/Sharepoint-UES-ESV/Documents%20partages/RT/13705.pdf?csf=1&web=1&e=GAByqr | F169: =IF(OR(B169=ville,C169=ville),MAX($F$1:F168)+1,0) -> 0
A170: Nevers-Chagny | B170: Nevers | C170: Chagny | D170: 15410 | E170: https://sncf.sharepoint.com/:b:/r/sites/Sharepoint-UES-ESV/Documents%20partages/RT/15410.pdf?csf=1&web=1&e=eEBzGm | F170: =IF(OR(B170=ville,C170=ville),MAX($F$1:F169)+1,0) -> 0
A171: Nice Ville-Breil sur Roya | B171: Nice Ville | C171: Breil sur Roya | D171: 15922 | E171: https://sncf.sharepoint.com/:b:/r/sites/Sharepoint-UES-ESV/Documents%20partages/RT/15922.pdf?csf=1&web=1&e=wqcjFC | F171: =IF(OR(B171=ville,C171=ville),MAX($F$1:F170)+1,0) -> 0
A172: Nierderbonn les Bains-Haguenau | B172: Nierderbonn les Bains | C172: Haguenau | D172: 11059 | E172: https://sncf.sharepoint.com/:b:/r/sites/Sharepoint-UES-ESV/Documents%20partages/RT/11059.pdf?csf=1&web=1&e=SmmTNr | F172: =IF(OR(B172=ville,C172=ville),MAX($F$1:F171)+1,0) -> 0
A173: Nuits sous Ravières-Dijon | B173: Nuits sous Ravières | C173: Dijon | D173: 15103 | E173: https://sncf.sharepoint.com/:b:/r/sites/Sharepoint-UES-ESV/Documents%20partages/RT/15103.pdf?csf=1&web=1&e=IA7eW4 | F173: =IF(OR(B173=ville,C173=ville),MAX($F$1:F172)+1,0) -> 0
A174: Nurieux-Oyonnax | B174: Nurieux | C174: Oyonnax | D174: 15134 | E174: https://sncf.sharepoint.com/:b:/r/sites/Sharepoint-UES-ESV/Documents%20partages/RT/15134.pdf?csf=1&web=1&e=2F6Yfs | F174: =IF(OR(B174=ville,C174=ville),MAX($F$1:F173)+1,0) -> 0
A175: Orchies-Ascq | B175: Orchies | C175: Ascq | D175: 12035 | E175: https://sncf.sharepoint.com/:b:/r/sites/Sharepoint-UES-ESV/Documents%20partages/RT/12035.pdf?csf=1&web=1&e=nKTMa2 | F175: =IF(OR(B175=ville,C175=ville),MAX($F$1:F173)+1,0) -> 0
A176: Orléans Les Aubrais-Tours | B176: Orléans Les Aubrais | C176: Tours | D176: 14103 | E176: https://sncf.sharepoint.com/:b:/r/sites/Sharepoint-UES-ESV/Documents%20partages/RT/14103.pdf?csf=1&web=1&e=yzkxD2 | F176: =IF(OR(B176=ville,C176=ville),MAX($F$1:F175)+1,0) -> 0
A177: Orléans Les Aubrais-Vierzon | B177: Orléans Les Aubrais | C177: Vierzon | D177: 14201 | E177: https://sncf.sharepoint.com/:b:/r/sites/Sharepoint-UES-ESV/Documents%20partages/RT/14201.pdf?csf=1&web=1&e=zE8379 | F177: =IF(OR(B177=ville,C177=ville),MAX($F$1:F176)+1,0) -> 0
A178: Pagny sur Moselle-Longuyon | B178: Pagny sur Moselle | C178: Longuyon | D178: 11721 | E178: https://sncf.sharepoint.com/:b:/r/sites/Sharepoint-UES-ESV/Documents%20partages/RT/11721.pdf?csf=1&web=1&e=ASBeUH | F178: =IF(OR(B178=ville,C178=ville),MAX($F$1:F177)+1,0) -> 0
A179: Paris Austerlitz-Orléans Les Aubrais | B179: Paris Austerlitz | C179: Orléans Les Aubrais | D179: 14101 | E179: https://sncf.sharepoint.com/:b:/r/sites/Sharepoint-UES-ESV/Documents%20partages/RT/14101.pdf?csf=1&web=1&e=HwqhvK | F179: =IF(OR(B179=ville,C179=ville),MAX($F$1:F178)+1,0) -> 0
A180: Paris Est-Château Thierry | B180: Paris Est | C180: Château Thierry | D180: 11100 | E180: https://sncf.sharepoint.com/:b:/r/sites/Sharepoint-UES-ESV/Documents%20partages/RT/11100.pdf?csf=1&web=1&e=nFss4Y | F180: =IF(OR(B180=ville,C180=ville),MAX($F$1:F179)+1,0) -> 0
A181: Paris Gare de Lyon-Montereau | B181: Paris Gare de Lyon | C181: Montereau | D181: 15101 | E181: https://sncf.sharepoint.com/:b:/r/sites/Sharepoint-UES-ESV/Documents%20partages/RT/15101.pdf?csf=1&web=1&e=9sWRlp | F181: =IF(OR(B181=ville,C181=ville),MAX($F$1:F180)+1,0) -> 0
A182: Paris Montparnasse-Chartres | B182: Paris Montparnasse | C182: Chartres | D182: 13602 | E182: https://sncf.sharepoint.com/:b:/r/sites/Sharepoint-UES-ESV/Documents%20partages/RT/13602.pdf?csf=1&web=1&e=dLAtAA | F182: =IF(OR(B182=ville,C182=ville),MAX($F$1:F181)+1,0) -> 0
A183: Paris Nord-Crépy en Valois | B183: Paris Nord | C183: Crépy en Valois | D183: 12221 | E183: https://sncf.sharepoint.com/:b:/r/sites/Sharepoint-UES-ESV/Documents%20partages/RT/12221.pdf?csf=1&web=1&e=V3emq4 | F183: =IF(OR(B183=ville,C183=ville),MAX($F$1:F182)+1,0) -> 0
A184: Pau-Bedous | B184: Pau | C184: Bedous | D184: 14931 | E184: https://sncf.sharepoint.com/:b:/r/sites/Sharepoint-UES-ESV/Documents%20partages/RT/14931.pdf?csf=1&web=1&e=XCgrlo | F184: =IF(OR(B184=ville,C184=ville),MAX($F$1:F183)+1,0) -> 0
A185: Périgueux-Agen | B185: Périgueux | C185: Agen | D185: 14033 | E185: https://sncf.sharepoint.com/:b:/r/sites/Sharepoint-UES-ESV/Documents%20partages/RT/14033.pdf?csf=1&web=1&e=Lx635J | F185: =IF(OR(B185=ville,C185=ville),MAX($F$1:F184)+1,0) -> 0
A186: Périgueux-Brive la Gaillarde | B186: Périgueux | C186: Brive la Gaillarde | D186: 14935 | E186: https://sncf.sharepoint.com/:b:/r/sites/Sharepoint-UES-ESV/Documents%20partages/RT/14935.pdf?csf=1&web=1&e=bKryCt | F186: =IF(OR(B186=ville,C186=ville),MAX($F$1:F185)+1,0) -> 0
A187: Périgueux-Coutras | B187: Périgueux | C187: Coutras | D187: 14936 | E187: https://sncf.sharepoint.com/:b:/r/sites/Sharepoint-UES-ESV/Documents%20partages/RT/14936.pdf?csf=1&web=1&e=Jusuzr | F187: =IF(OR(B187=ville,C187=ville),MAX($F$1:F186)+1,0) -> 0
A188: Perpignan-Villefranche Vernet les Bains | B188: Perpignan | C188: Villefranche Vernet les Bains | D188: 15065 | E188: https://sncf.sharepoint.com/:b:/r/sites/Sharepoint-UES-ESV/Documents%20partages/RT/15065.pdf?csf=1&web=1&e=F75YA0 | F188: =IF(OR(B188=ville,C188=ville),MAX($F$1:F187)+1,0) -> 0
A189: Peyraud-Le Teil | B189: Peyraud | C189: Le Teil | D189: 15121 | E189: https://sncf.sharepoint.com/:b:/r/sites/Sharepoint-UES-ESV/Documents%20partages/RT/15121.pdf?csf=1&web=1&e=kMkUkM | F189: =IF(OR(B189=ville,C189=ville),MAX($F$1:F188)+1,0) -> 0
A190: Pierrelatte-Marseille | B190: Pierrelatte | C190: Marseille | D190: 15108 | E190: https://sncf.sharepoint.com/:b:/r/sites/Sharepoint-UES-ESV/Documents%20partages/RT/15108.pdf?csf=1&web=1&e=XftKjo | F190: =IF(OR(B190=ville,C190=ville),MAX($F$1:F189)+1,0) -> 0
A191: Poitiers-Angoûleme | B191: Poitiers | C191: Angoûleme | D191: 14105 | E191: https://sncf.sharepoint.com/:b:/r/sites/Sharepoint-UES-ESV/Documents%20partages/RT/14105.pdf?csf=1&web=1&e=dSPf4F | F191: =IF(OR(B191=ville,C191=ville),MAX($F$1:F190)+1,0) -> 0
A192: Poitiers-La Rochelle | B192: Poitiers | C192: La Rochelle | D192: 14124 | E192: https://sncf.sharepoint.com/:b:/r/sites/Sharepoint-UES-ESV/Documents%20partages/RT/14124.pdf?csf=1&web=1&e=83D47N | F192: =IF(OR(B192=ville,C192=ville),MAX($F$1:F191)+1,0) -> 0
A193: Poitiers-Limoges Bénédictins | B193: Poitiers | C193: Limoges Bénédictins | D193: 14040 | E193: https://sncf.sharepoint.com/:b:/r/sites/Sharepoint-UES-ESV/Documents%20partages/RT/14040.pdf?csf=1&web=1&e=XFvi64 | F193: =IF(OR(B193=ville,C193=ville),MAX($F$1:F192)+1,0) -> 0
A194: =B194&"-"&C194 -> Pont Saint Vincent-Blainville Damelevières | B194: Pont Saint Vincent | C194: Blainville Damelevières | D194: 11038 | E194: https://sncf.sharepoint.com/:b:/r/sites/Sharepoint-UES-ESV/Documents%20partages/RT/11038.pdf?csf=1&web=1&e=xOBh34 | F194: =IF(OR(B194=ville,C194=ville),MAX($F$1:F193)+1,0) -> 0
A195: Pontoise-Creil | B195: Pontoise | C195: Creil | D195: 12210 | E195: https://sncf.sharepoint.com/:b:/r/sites/Sharepoint-UES-ESV/Documents%20partages/RT/12210.pdf?csf=1&web=1&e=VPypIE | F195: =IF(OR(B195=ville,C195=ville),MAX($F$1:F194)+1,0) -> 0
A196: Puyoo-Bayonne | B196: Puyoo | C196: Bayonne | D196: 14704 | E196: https://sncf.sharepoint.com/:b:/r/sites/Sharepoint-UES-ESV/Documents%20partages/RT/14704.pdf?csf=1&web=1&e=Dvse1p | F196: =IF(OR(B196=ville,C196=ville),MAX($F$1:F195)+1,0) -> 0
A197: Quimper-Landerneau | B197: Quimper | C197: Landerneau | D197: 13964 | E197: https://sncf.sharepoint.com/:b:/r/sites/Sharepoint-UES-ESV/Documents%20partages/RT/13964.pdf?csf=1&web=1&e=fhbloL | F197: =IF(OR(B197=ville,C197=ville),MAX($F$1:F196)+1,0) -> 0
A198: Reims-Charleville Mézières | B198: Reims | C198: Charleville Mézières | D198: 11132 | E198: https://sncf.sharepoint.com/:b:/r/sites/Sharepoint-UES-ESV/Documents%20partages/RT/11132.pdf?csf=1&web=1&e=Mws0rm | F198: =IF(OR(B198=ville,C198=ville),MAX($F$1:F197)+1,0) -> 0
A199: Rennes-Brest | B199: Rennes | C199: Brest | D199: 13607 | E199: https://sncf.sharepoint.com/:b:/r/sites/Sharepoint-UES-ESV/Documents%20partages/RT/13607.pdf?csf=1&web=1&e=fwMuvx | F199: =IF(OR(B199=ville,C199=ville),MAX($F$1:F198)+1,0) -> 0
A200: Rennes-Quimper | B200: Rennes | C200: Quimper | D200: 13707 | E200: https://sncf.sharepoint.com/:b:/r/sites/Sharepoint-UES-ESV/Documents%20partages/RT/13707.pdf?csf=1&web=1&e=qhMeeo | F200: =IF(OR(B200=ville,C200=ville),MAX($F$1:F199)+1,0) -> 0
... 57 more rows

Sheet Liste Villes (hidden)
A1: Agen | E1: ESV
A2: Abancourt | E2: 701
A3: Abbeville | E3: 702
A4: Achères | E4: 703
A5: Aix en Provence
A6: Aix Les Bains
A7: Ambérieu
A8: Amiens
A9: Amiens Km 130,8
A10: Angers Saint Laud
A11: Angoûleme
A12: Annecy
A13: Annemasse
A14: Apach
A15: Arcachon
A16: Argentan
A17: Argenteuil
A18: Armentières
A19: Arras
A20: Arvant
A21: Ascq
A22: Auch
A23: Aulnay sous Bois
A24: Aulnoye
A25: Auray
A26: Aurillac
A27: Autun
A28: Bale
A29: Bayonne
A30: Beauvais
A31: Bedous
A32: Belfort
A33: Bellegarde
A34: Béning
A35: Besançon Viotte
A36: Béthune
A37: Bettembourg
A38: Bif de Saint André
A39: Biganos Facture
A40: Blainville Damelevières
A41: Blanquefort
A42: Bondy
A43: Bordeaux
A44: Boulogne Ville
A45: Bourg En Bresse
A46: Bourges
A47: Bréauté Beuzeville
A48: Breil sur Roya
A49: Brest
A50: Brétigny
A51: Brive La Gaillarde
A52: Busigny
A53: Busseau
A54: Caen
A55: Calais Ville
A56: Cambrai ville
A57: Cannes-Voyageurs
A58: Capdenac
A59: Carcassonne
A60: Carpentras
A61: Chagny
A62: Châlons en Champagne
A63: Chambéry Challes Les Eaux
A64: Charleville Mézières
A65: Chartres
A66: Chasse sur Rhône
A67: Château Thierry
A68: Châteaubriant
A69: Châteaudun
A70: Châteauroux
A71: Cherbourg
A72: Chinon
A73: Cholet
A74: Clermont Ferrand
A75: Clerval
A76: Clisson
A77: Colmar
A78: Comines
A79: Compiègne
A80: Conflans Jarny
A81: Coulommiers
A82: Coutras
A83: Creil
A84: Crépy en Valois
A85: Culmont Chalindrey
A86: Culoz
A87: Dax
A88: Delle
A89: Dieppe
A90: Dijon
A91: Dives Cabourg
A92: Dol
A93: Dole
A94: Don Sainghin
A95: Douai
A96: Dunkerque
A97: Epernay
A98: Epinal
A99: Etang
A100: Etaples
A101: Evian Les Bains
A102: Fécamp
A103: Felletin
A104: Givet
A105: Grannat
A106: Granville
A107: Grasse
A108: Grenoble
A109: Gretz Armainvilliers
A110: Hagondage
A111: Haguenau
A112: Haubourdin
A113: Hazebrouck
A114: Hirson
A115: Hyères
A116: Is sur Tille
A117: Joué Lés Tours
A118: Kalhausen
A119: Km 75
A120: La Madeleine
A121: La Pauline-Hyères
A122: La Plaine
A123: La Pointe de Grave
A124: La Possonnière
A125: La Roche sur Foron
A126: La Roche sur Yon
A127: La Rochelle
A128: Landerneau
A129: Laon
A130: Latour de Carol
A131: Lauterbourg
A132: Le Buisson
A133: Le Croisic
A134: Le Havre
A135: Le Mans
A136: Le Teil
A137: Le Tréport Mers
A138: Lens
A139: Lérouville
A140: Les Sables d'Olonne
A141: Lestrem
A142: Libourne
A143: Lille Flandres
A144: Limoges Bénédictins
A145: Limoux
A146: Lison
A147: Loches
A148: Longueau
A149: Longueville
A150: Longuyon
A151: Lourches
A152: Lunéville
A153: Lure
A154: Lyon Perrache
A155: Mâcon ville
A156: Malaunay
A157: Mantes La Jolie
A158: Marseille
A159: Marseille par Port de Bouc
A160: Massy Palaiseau
A161: Mazamet
A162: Meaux
A163: Merrey
A164: Metz Ville
A165: Metzeral
A166: Miramas
A167: Modane
A168: Molsheim
A169: Mommenheim
A170: Mont de Marsan
A171: Montauban
A172: Montereau
A173: Montluçon
A174: Morcenx
A175: Moret Veneux les Sablons
A176: Mulhouse
A177: Nancy
A178: Nantes
A179: Narbonne
A180: Nevers
A181: Nice Ville
A182: Nierderbonn les Bains
A183: Nimes
A184: Noisy le Sec
A185: Nuits sous Ravières
A186: Nurieux
A187: Orchies
A188: Orléans Les Aubrais
A189: Oyonnax
A190: Pagny sur Moselle
A191: Paris Austerlitz
A192: Paris Est
A193: Paris Gare de Lyon
A194: Paris Montparnasse
A195: Paris Nord
A196: Pau
A197: Périgueux
A198: Perpignan
A199: Peyraud
A200: Pierrelatte
... 78 more rows
